{"text_format":"1","workbook":"xlsx","n_sheets":12,"sheets":["Vejledning","Registrering","Type","Tværprofilelement","Spor","Bitumen","Stenmateriale","Kornkurve","EntrKoder","Referencelinjer","Eksempel på registrering","Ark1"],"not_rendered":{"charts":0,"images":4,"macros":1,"external_links":1,"defined_names":12,"comments":0,"pivot_tables":0},"unopened":[],"bounds":{"document_bytes":16777216,"sheet_cells":100000,"rows_first":2000,"rows_last":500,"rows_between":2000,"halvings":0,"cell_chars":16384,"cell_head_chars":4096},"cells_cut":0,"cells_raw":0,"read":"whole","date_system":"1900"}

{"sheet":"Vejledning","index":0,"n_rows":7,"n_cols":1,"rows_kept":7,"cut":false,"hidden":false,"merged":[]}
["Belægningsregistrering i vejman.dk"]
["Den egentlige registrering foregår på fanebladet ”Registrering”. Der er udfyldt én række med ét eksempel. Række 4 angiver de muligheder der er for at udfylde den pågældende kolonne, adskilt med /."]
["De steder hvor der står ”Se faneblad”, er der et tilhørende faneblad med samme navn, som selve kolonnen. Fanebladet angiver hvilke værdier der kan vælges i kolonnen. Det er ”Bruger kode” (angivet med gult) der kan inddateres i den tilhørende kolonne på registreringsfanebladet. De steder hvor valget er Ja/Nej indtastes kun Ja (=1), ikke udfyldte felter opfattes som Nej."]
["Såfremt der til belægningstypen er angivet en vægtfylde i værdilisten, så kan man nøjes med at angive en af værdierne mængde [kg/m2] eller tykkelse [mm]. Den ikke angivne værdi vil automatisk blive udregnet på det tidspunkt, at data ajourføres i vejman.dk.\n "]
["Hver række i arket repræsenterer ét belægningsarbejde. Så snart der en ændring i laget, fx ændring i mængden fra 60 kg/m2 til 80 kg/m2, så registreres der på en ny række. HUSK at det er ”Udlæg slut dato”, der angiver hvilket lag, der er nederst. Men følger man bare de faktiske udlægningstidspunkter, ja så kommer det til at passe. I det tilfælde hvor der er tale om samme udlægningsdag for f.eks. ABB og SMA bør datoen for ABB justeres med en dag, så dette lag kommer nederst."]
["Ved valg af vejside og tværprofilelement er der følgende specielle værdier:\n• Vejside = Alle\n• Tværprofilelement = Alle kørespor inkl. kantbaner\nNår man vælger den ene eller begge disse værdier, bliver belægningsarbejdet stedfæstet i forhold til oplysningerne i tværprofilregistret. Det har to formål:\n• Man sikrer, at der er overensstemmelse mellem oplysningerne i tværprofilregistret og belægningsregistret (i ajourføringsøjeblikket). Man får ikke lagt et belægningsarbejde ud på et sted, hvor det angivne tværprofilelement ikke findes.\n• Man kan slippe med at registrere én post (plade) frem for flere.\nDet er valgfrit om man vil gøre brug af disse specielle værdier. Man skal ikke bruge dem, hvis kvaliteten af data i tværprofilregistret er tvivlsom."]
["BEMÆRK at det er hele vejens opbygning der skal inddateres, ikke bare GAB + ABB + Slidlag, men også bundsikring, stabil grus osv."]

{"sheet":"Registrering","index":1,"n_rows":299,"n_cols":26,"rows_kept":299,"cut":false,"hidden":false,"merged":[[3,9,3,24],[3,0,3,7],[0,0,0,2],[0,3,0,6],[0,7,0,10],[0,11,0,13],[0,14,0,15],[0,16,0,17],[1,0,1,2],[1,3,1,6],[1,7,1,10],[1,11,1,13],[1,14,1,15],[1,16,1,17]]}
["DATO",null,null,"DOKUMENT",null,null,null,"SAGSBEHANDLER",null,null,null,"MAIL",null,null,"TELEFON",null,"SAP-opgavenummer",null,null,null,null,null,null,null,null," "]
[null,null,null,null,null,null,null,null,null,null,null,null,null,null,null,null,null,null,null,null,null,null,null,null,null," "]
[null,null,null,null,null,null,null,null,null,null,null,null,null,null,null,null,null,null,null,null,null,null,null,null,null," "]
["Stedfæstelse",null,null,null,null,null,null,null,null,"Belægning"]
["Admvejnr.","Admvejdel","km","m","km","m","Vejside","Tværprofilelement","Tvær. kode","Type","Forsøgsbel.","Støjreduc.","Mængde","Tykkelse","Modificeret","Bitumen","Lyst tilslag","Stenmateriale","Kornkurve","Udlægn slut dato","Bemærkning","Entreprenørnavn","Entreprenør ID","Affræst tykkelse","Afhjælpningsdato","Partiel"]
[null,null,null,null,null,null,"Alle/H/V","Alle kørespor incl kantbane / Nødspor","Automatisk","Se faneblad","Ja/Nej","Ja/Nej","kg/m2","mm","Ja/Nej","Se faneblad","Ja/Nej","Se faneblad","Se faneblad",null,"Valgfri bemærkning","Se faneblad","Automatisk","mm",null,"Ja/Nej"]
[" "," "," "," "," "," ","Alle ",null,{"$f":"LOOKUP(H7,Tværprofilelement!C3:C24,Tværprofilelement!A3:A24)","v":{"$error":"#N/A"}},null,null,null,null,null,null,null,null,null,null,null,null,null,{"$f":"LOOKUP(V7,EntrKoder!B$1:B$10,EntrKoder!A$1:A$10)","v":{"$error":"#N/A"}},null," "," "]
[" "," "," "," "," "," ","Alle ",null,{"$f":"LOOKUP(H8,Tværprofilelement!C$3:C$24,Tværprofilelement!A$3:A$24)","v":{"$error":"#N/A"}},null,null,null,null,null,null,null,null,null,null,null,null,null,{"$f":"LOOKUP(V8,EntrKoder!B$1:B$10,EntrKoder!A$1:A$10)","v":{"$error":"#N/A"}},null," "," "]
[" "," "," "," "," "," ","Alle ",null,{"$f":"LOOKUP(H9,Tværprofilelement!C$3:C$24,Tværprofilelement!A$3:A$24)","v":{"$error":"#N/A"}},null,null,null,null,null,null,null,null,null,null,null,null,null,{"$f":"LOOKUP(V9,EntrKoder!B$1:B$10,EntrKoder!A$1:A$10)","v":{"$error":"#N/A"}},null," "," "]
[" "," "," "," "," "," ","Alle ",null,{"$f":"LOOKUP(H10,Tværprofilelement!C$3:C$24,Tværprofilelement!A$3:A$24)","v":{"$error":"#N/A"}},null,null,null,null,null,null,null,null,null,null,null,null,null,{"$f":"LOOKUP(V10,EntrKoder!B$1:B$10,EntrKoder!A$1:A$10)","v":{"$error":"#N/A"}},null," "," "]
[" "," "," "," "," "," ","Alle ",null,{"$f":"LOOKUP(H11,Tværprofilelement!C$3:C$24,Tværprofilelement!A$3:A$24)","v":{"$error":"#N/A"}},null,null,null,null,null,null,null,null,null,null,null,null,null,{"$f":"LOOKUP(V11,EntrKoder!B$1:B$10,EntrKoder!A$1:A$10)","v":{"$error":"#N/A"}},null," "," "]
[" "," "," "," "," "," ","Alle ",null,{"$f":"LOOKUP(H12,Tværprofilelement!C$3:C$24,Tværprofilelement!A$3:A$24)","v":{"$error":"#N/A"}},null,null,null,null,null,null,null,null,null,null,null,null,null,{"$f":"LOOKUP(V12,EntrKoder!B$1:B$10,EntrKoder!A$1:A$10)","v":{"$error":"#N/A"}},null," "," "]
[" "," "," "," "," "," ","Alle ",null,{"$f":"LOOKUP(H13,Tværprofilelement!C$3:C$24,Tværprofilelement!A$3:A$24)","v":{"$error":"#N/A"}},null,null,null,null,null,null,null,null,null,null,null,null,null,{"$f":"LOOKUP(V13,EntrKoder!B$1:B$10,EntrKoder!A$1:A$10)","v":{"$error":"#N/A"}},null," "," "]
[" "," "," "," "," "," ","Alle ",null,{"$f":"LOOKUP(H14,Tværprofilelement!C$3:C$24,Tværprofilelement!A$3:A$24)","v":{"$error":"#N/A"}},null,null,null,null,null,null,null,null,null,null,null,null,null,{"$f":"LOOKUP(V14,EntrKoder!B$1:B$10,EntrKoder!A$1:A$10)","v":{"$error":"#N/A"}},null," "," "]
[" "," "," "," "," "," ","Alle ",null,{"$f":"LOOKUP(H15,Tværprofilelement!C$3:C$24,Tværprofilelement!A$3:A$24)","v":{"$error":"#N/A"}},null,null,null,null,null,null,null,null,null,null,null,null,null,{"$f":"LOOKUP(V15,EntrKoder!B$1:B$10,EntrKoder!A$1:A$10)","v":{"$error":"#N/A"}},null," "," "]
[" "," "," "," "," "," ","Alle ",null,{"$f":"LOOKUP(H16,Tværprofilelement!C$3:C$23,Tværprofilelement!A$3:A$23)","v":{"$error":"#N/A"}},null,null,null,null,null,null,null,null,null,null,null,null,null,{"$f":"LOOKUP(V16,EntrKoder!B$1:B$10,EntrKoder!A$1:A$10)","v":{"$error":"#N/A"}},null," "," "]
[" "," "," "," "," "," ","Alle ",null,{"$f":"LOOKUP(H17,Tværprofilelement!C$3:C$24,Tværprofilelement!A$3:A$24)","v":{"$error":"#N/A"}},null,null,null,null,null,null,null,null,null,null,null,null,null,{"$f":"LOOKUP(V17,EntrKoder!B$1:B$10,EntrKoder!A$1:A$10)","v":{"$error":"#N/A"}},null," "," "]
[" "," "," "," "," "," ","Alle ",null,{"$f":"LOOKUP(H18,Tværprofilelement!C$3:C$24,Tværprofilelement!A$3:A$24)","v":{"$error":"#N/A"}},null,null,null,null,null,null,null,null,null,null,null,null,null,{"$f":"LOOKUP(V18,EntrKoder!B$1:B$10,EntrKoder!A$1:A$10)","v":{"$error":"#N/A"}},null," "," "]
[" "," "," "," "," "," ","Alle ",null,{"$f":"LOOKUP(H19,Tværprofilelement!C$3:C$24,Tværprofilelement!A$3:A$24)","v":{"$error":"#N/A"}},null,null,null,null,null,null,null,null,null,null,null,null,null,{"$f":"LOOKUP(V19,EntrKoder!B$1:B$10,EntrKoder!A$1:A$10)","v":{"$error":"#N/A"}},null," "," "]
[" "," "," "," "," "," ","Alle ",null,{"$f":"LOOKUP(H20,Tværprofilelement!C$3:C$24,Tværprofilelement!A$3:A$24)","v":{"$error":"#N/A"}},null,null,null,null,null,null,null,null,null,null,null,null,null,{"$f":"LOOKUP(V20,EntrKoder!B$1:B$10,EntrKoder!A$1:A$10)","v":{"$error":"#N/A"}},null," "," "]
[" "," "," "," "," "," ","Alle ",null,{"$f":"LOOKUP(H21,Tværprofilelement!C$3:C$24,Tværprofilelement!A$3:A$24)","v":{"$error":"#N/A"}},null,null,null,null,null,null,null,null,null,null,null,null,null,{"$f":"LOOKUP(V21,EntrKoder!B$1:B$10,EntrKoder!A$1:A$10)","v":{"$error":"#N/A"}},null," "," "]
[" "," "," "," "," "," ","Alle ",null,{"$f":"LOOKUP(H22,Tværprofilelement!C$3:C$24,Tværprofilelement!A$3:A$24)","v":{"$error":"#N/A"}},null,null,null,null,null,null,null,null,null,null,null,null,null,{"$f":"LOOKUP(V22,EntrKoder!B$1:B$10,EntrKoder!A$1:A$10)","v":{"$error":"#N/A"}},null," "," "]
[" "," "," "," "," "," ","Alle ",null,{"$f":"LOOKUP(H23,Tværprofilelement!C$3:C$24,Tværprofilelement!A$3:A$24)","v":{"$error":"#N/A"}},null,null,null,null,null,null,null,null,null,null,null,null,null,{"$f":"LOOKUP(V23,EntrKoder!B$1:B$10,EntrKoder!A$1:A$10)","v":{"$error":"#N/A"}},null," "," "]
[" "," "," "," "," "," ","Alle ",null,{"$f":"LOOKUP(H24,Tværprofilelement!C$3:C$24,Tværprofilelement!A$3:A$24)","v":{"$error":"#N/A"}},null,null,null,null,null,null,null,null,null,null,null,null,null,{"$f":"LOOKUP(V24,EntrKoder!B$1:B$10,EntrKoder!A$1:A$10)","v":{"$error":"#N/A"}},null," "," "]
[" "," "," "," "," "," ","Alle ",null,{"$f":"LOOKUP(H25,Tværprofilelement!C$3:C$24,Tværprofilelement!A$3:A$24)","v":{"$error":"#N/A"}},null,null,null,null,null,null,null,null,null,null,null,null,null,{"$f":"LOOKUP(V25,EntrKoder!B$1:B$10,EntrKoder!A$1:A$10)","v":{"$error":"#N/A"}},null," "," "]
[" "," "," "," "," "," ","Alle ",null,{"$f":"LOOKUP(H26,Tværprofilelement!C$3:C$24,Tværprofilelement!A$3:A$24)","v":{"$error":"#N/A"}},null,null,null,null,null,null,null,null,null,null,null,null,null,{"$f":"LOOKUP(V26,EntrKoder!B$1:B$10,EntrKoder!A$1:A$10)","v":{"$error":"#N/A"}},null," "," "]
[" "," "," "," "," "," ","Alle ",null,{"$f":"LOOKUP(H27,Tværprofilelement!C$3:C$24,Tværprofilelement!A$3:A$24)","v":{"$error":"#N/A"}},null,null,null,null,null,null,null,null,null,null,null,null,null,{"$f":"LOOKUP(V27,EntrKoder!B$1:B$10,EntrKoder!A$1:A$10)","v":{"$error":"#N/A"}},null," "," "]
[" "," "," "," "," "," ","Alle ",null,{"$f":"LOOKUP(H28,Tværprofilelement!C$3:C$24,Tværprofilelement!A$3:A$24)","v":{"$error":"#N/A"}},null,null,null,null,null,null,null,null,null,null,null,null,null,{"$f":"LOOKUP(V28,EntrKoder!B$1:B$10,EntrKoder!A$1:A$10)","v":{"$error":"#N/A"}},null," "," "]
[" "," "," "," "," "," ","Alle ",null,{"$f":"LOOKUP(H29,Tværprofilelement!C$3:C$24,Tværprofilelement!A$3:A$24)","v":{"$error":"#N/A"}},null,null,null,null,null,null,null,null,null,null,null,null,null,{"$f":"LOOKUP(V29,EntrKoder!B$1:B$10,EntrKoder!A$1:A$10)","v":{"$error":"#N/A"}},null," "," "]
[" "," "," "," "," "," ","Alle ",null,{"$f":"LOOKUP(H30,Tværprofilelement!C$3:C$24,Tværprofilelement!A$3:A$24)","v":{"$error":"#N/A"}},null,null,null,null,null,null,null,null,null,null,null,null,null,{"$f":"LOOKUP(V30,EntrKoder!B$1:B$10,EntrKoder!A$1:A$10)","v":{"$error":"#N/A"}},null," "," "]
[" "," "," "," "," "," ","Alle ",null,{"$f":"LOOKUP(H31,Tværprofilelement!C$3:C$24,Tværprofilelement!A$3:A$24)","v":{"$error":"#N/A"}},null,null,null,null,null,null,null,null,null,null,null,null,null,{"$f":"LOOKUP(V31,EntrKoder!B$1:B$10,EntrKoder!A$1:A$10)","v":{"$error":"#N/A"}},null," "," "]
[" "," "," "," "," "," ","Alle ",null,{"$f":"LOOKUP(H32,Tværprofilelement!C$3:C$24,Tværprofilelement!A$3:A$24)","v":{"$error":"#N/A"}},null,null,null,null,null,null,null,null,null,null,null,null,null,{"$f":"LOOKUP(V32,EntrKoder!B$1:B$10,EntrKoder!A$1:A$10)","v":{"$error":"#N/A"}},null," "," "]
[" "," "," "," "," "," ","Alle ",null,{"$f":"LOOKUP(H33,Tværprofilelement!C$3:C$24,Tværprofilelement!A$3:A$24)","v":{"$error":"#N/A"}},null,null,null,null,null,null,null,null,null,null,null,null,null,{"$f":"LOOKUP(V33,EntrKoder!B$1:B$10,EntrKoder!A$1:A$10)","v":{"$error":"#N/A"}},null," "," "]
[" "," "," "," "," "," ","Alle ",null,{"$f":"LOOKUP(H34,Tværprofilelement!C$3:C$24,Tværprofilelement!A$3:A$24)","v":{"$error":"#N/A"}},null,null,null,null,null,null,null,null,null,null,null,null,null,{"$f":"LOOKUP(V34,EntrKoder!B$1:B$10,EntrKoder!A$1:A$10)","v":{"$error":"#N/A"}},null," "," "]
[" "," "," "," "," "," ","Alle ",null,{"$f":"LOOKUP(H35,Tværprofilelement!C$3:C$24,Tværprofilelement!A$3:A$24)","v":{"$error":"#N/A"}},null,null,null,null,null,null,null,null,null,null,null,null,null,{"$f":"LOOKUP(V35,EntrKoder!B$1:B$10,EntrKoder!A$1:A$10)","v":{"$error":"#N/A"}},null," "," "]
[" "," "," "," "," "," ","Alle ",null,{"$f":"LOOKUP(H36,Tværprofilelement!C$3:C$24,Tværprofilelement!A$3:A$24)","v":{"$error":"#N/A"}},null,null,null,null,null,null,null,null,null,null,null,null,null,{"$f":"LOOKUP(V36,EntrKoder!B$1:B$10,EntrKoder!A$1:A$10)","v":{"$error":"#N/A"}},null," "," "]
[" "," "," "," "," "," ","Alle ",null,{"$f":"LOOKUP(H37,Tværprofilelement!C$3:C$24,Tværprofilelement!A$3:A$24)","v":{"$error":"#N/A"}},null,null,null,null,null,null,null,null,null,null,null,null,null,{"$f":"LOOKUP(V37,EntrKoder!B$1:B$10,EntrKoder!A$1:A$10)","v":{"$error":"#N/A"}},null," "," "]
[" "," "," "," "," "," ","Alle ",null,{"$f":"LOOKUP(H38,Tværprofilelement!C$3:C$24,Tværprofilelement!A$3:A$24)","v":{"$error":"#N/A"}},null,null,null,null,null,null,null,null,null,null,null,null,null,{"$f":"LOOKUP(V38,EntrKoder!B$1:B$10,EntrKoder!A$1:A$10)","v":{"$error":"#N/A"}},null," "," "]
[" "," "," "," "," "," ","Alle ",null,{"$f":"LOOKUP(H39,Tværprofilelement!C$3:C$24,Tværprofilelement!A$3:A$24)","v":{"$error":"#N/A"}},null,null,null,null,null,null,null,null,null,null,null,null,null,{"$f":"LOOKUP(V39,EntrKoder!B$1:B$10,EntrKoder!A$1:A$10)","v":{"$error":"#N/A"}},null," "," "]
[" "," "," "," "," "," ","Alle ",null,{"$f":"LOOKUP(H40,Tværprofilelement!C$3:C$24,Tværprofilelement!A$3:A$24)","v":{"$error":"#N/A"}},null,null,null,null,null,null,null,null,null,null,null,null,null,{"$f":"LOOKUP(V40,EntrKoder!B$1:B$10,EntrKoder!A$1:A$10)","v":{"$error":"#N/A"}},null," "," "]
[" "," "," "," "," "," ","Alle ",null,{"$f":"LOOKUP(H41,Tværprofilelement!C$3:C$24,Tværprofilelement!A$3:A$24)","v":{"$error":"#N/A"}},null,null,null,null,null,null,null,null,null,null,null,null,null,{"$f":"LOOKUP(V41,EntrKoder!B$1:B$10,EntrKoder!A$1:A$10)","v":{"$error":"#N/A"}},null," "," "]
[" "," "," "," "," "," ","Alle ",null,{"$f":"LOOKUP(H42,Tværprofilelement!C$3:C$24,Tværprofilelement!A$3:A$24)","v":{"$error":"#N/A"}},null,null,null,null,null,null,null,null,null,null,null,null,null,{"$f":"LOOKUP(V42,EntrKoder!B$1:B$10,EntrKoder!A$1:A$10)","v":{"$error":"#N/A"}},null," "," "]
[" "," "," "," "," "," ","Alle ",null,{"$f":"LOOKUP(H43,Tværprofilelement!C$3:C$24,Tværprofilelement!A$3:A$24)","v":{"$error":"#N/A"}},null,null,null,null,null,null,null,null,null,null,null,null,null,{"$f":"LOOKUP(V43,EntrKoder!B$1:B$10,EntrKoder!A$1:A$10)","v":{"$error":"#N/A"}},null," "," "]
[" "," "," "," "," "," ","Alle ",null,{"$f":"LOOKUP(H44,Tværprofilelement!C$3:C$24,Tværprofilelement!A$3:A$24)","v":{"$error":"#N/A"}},null,null,null,null,null,null,null,null,null,null,null,null,null,{"$f":"LOOKUP(V44,EntrKoder!B$1:B$10,EntrKoder!A$1:A$10)","v":{"$error":"#N/A"}},null," "," "]
[" "," "," "," "," "," ","Alle ",null,{"$f":"LOOKUP(H45,Tværprofilelement!C$3:C$24,Tværprofilelement!A$3:A$24)","v":{"$error":"#N/A"}},null,null,null,null,null,null,null,null,null,null,null,null,null,{"$f":"LOOKUP(V45,EntrKoder!B$1:B$10,EntrKoder!A$1:A$10)","v":{"$error":"#N/A"}},null," "," "]
[" "," "," "," "," "," ","Alle ",null,{"$f":"LOOKUP(H46,Tværprofilelement!C$3:C$24,Tværprofilelement!A$3:A$24)","v":{"$error":"#N/A"}},null,null,null,null,null,null,null,null,null,null,null,null,null,{"$f":"LOOKUP(V46,EntrKoder!B$1:B$10,EntrKoder!A$1:A$10)","v":{"$error":"#N/A"}},null," "," "]
[" "," "," "," "," "," ","Alle ",null,{"$f":"LOOKUP(H47,Tværprofilelement!C$3:C$24,Tværprofilelement!A$3:A$24)","v":{"$error":"#N/A"}},null,null,null,null,null,null,null,null,null,null,null,null,null,{"$f":"LOOKUP(V47,EntrKoder!B$1:B$10,EntrKoder!A$1:A$10)","v":{"$error":"#N/A"}},null," "," "]
[" "," "," "," "," "," ","Alle ",null,{"$f":"LOOKUP(H48,Tværprofilelement!C$3:C$24,Tværprofilelement!A$3:A$24)","v":{"$error":"#N/A"}},null,null,null,null,null,null,null,null,null,null,null,null,null,{"$f":"LOOKUP(V48,EntrKoder!B$1:B$10,EntrKoder!A$1:A$10)","v":{"$error":"#N/A"}},null," "," "]
[" "," "," "," "," "," ","Alle ",null,{"$f":"LOOKUP(H49,Tværprofilelement!C$3:C$24,Tværprofilelement!A$3:A$24)","v":{"$error":"#N/A"}},null,null,null,null,null,null,null,null,null,null,null,null,null,{"$f":"LOOKUP(V49,EntrKoder!B$1:B$10,EntrKoder!A$1:A$10)","v":{"$error":"#N/A"}},null," "," "]
[" "," "," "," "," "," ","Alle ",null,{"$f":"LOOKUP(H50,Tværprofilelement!C$3:C$24,Tværprofilelement!A$3:A$24)","v":{"$error":"#N/A"}},null,null,null,null,null,null,null,null,null,null,null,null,null,{"$f":"LOOKUP(V50,EntrKoder!B$1:B$10,EntrKoder!A$1:A$10)","v":{"$error":"#N/A"}},null," "," "]
[" "," "," "," "," "," ","Alle ",null,{"$f":"LOOKUP(H51,Tværprofilelement!C$3:C$24,Tværprofilelement!A$3:A$24)","v":{"$error":"#N/A"}},null,null,null,null,null,null,null,null,null,null,null,null,null,{"$f":"LOOKUP(V51,EntrKoder!B$1:B$10,EntrKoder!A$1:A$10)","v":{"$error":"#N/A"}},null," "," "]
[" "," "," "," "," "," ","Alle ",null,{"$f":"LOOKUP(H52,Tværprofilelement!C$3:C$24,Tværprofilelement!A$3:A$24)","v":{"$error":"#N/A"}},null,null,null,null,null,null,null,null,null,null,null,null,null,{"$f":"LOOKUP(V52,EntrKoder!B$1:B$10,EntrKoder!A$1:A$10)","v":{"$error":"#N/A"}},null," "," "]
[" "," "," "," "," "," ","Alle ",null,{"$f":"LOOKUP(H53,Tværprofilelement!C$3:C$24,Tværprofilelement!A$3:A$24)","v":{"$error":"#N/A"}},null,null,null,null,null,null,null,null,null,null,null,null,null,{"$f":"LOOKUP(V53,EntrKoder!B$1:B$10,EntrKoder!A$1:A$10)","v":{"$error":"#N/A"}},null," "," "]
[" "," "," "," "," "," ","Alle ",null,{"$f":"LOOKUP(H54,Tværprofilelement!C$3:C$24,Tværprofilelement!A$3:A$24)","v":{"$error":"#N/A"}},null,null,null,null,null,null,null,null,null,null,null,null,null,{"$f":"LOOKUP(V54,EntrKoder!B$1:B$10,EntrKoder!A$1:A$10)","v":{"$error":"#N/A"}},null," "," "]
[" "," "," "," "," "," ","Alle ",null,{"$f":"LOOKUP(H55,Tværprofilelement!C$3:C$24,Tværprofilelement!A$3:A$24)","v":{"$error":"#N/A"}},null,null,null,null,null,null,null,null,null,null,null,null,null,{"$f":"LOOKUP(V55,EntrKoder!B$1:B$10,EntrKoder!A$1:A$10)","v":{"$error":"#N/A"}},null," "," "]
[" "," "," "," "," "," ","Alle ",null,{"$f":"LOOKUP(H56,Tværprofilelement!C$3:C$24,Tværprofilelement!A$3:A$24)","v":{"$error":"#N/A"}},null,null,null,null,null,null,null,null,null,null,null,null,null,{"$f":"LOOKUP(V56,EntrKoder!B$1:B$10,EntrKoder!A$1:A$10)","v":{"$error":"#N/A"}},null," "," "]
[" "," "," "," "," "," ","Alle ",null,{"$f":"LOOKUP(H57,Tværprofilelement!C$3:C$24,Tværprofilelement!A$3:A$24)","v":{"$error":"#N/A"}},null,null,null,null,null,null,null,null,null,null,null,null,null,{"$f":"LOOKUP(V57,EntrKoder!B$1:B$10,EntrKoder!A$1:A$10)","v":{"$error":"#N/A"}},null," "," "]
[" "," "," "," "," "," ","Alle ",null,{"$f":"LOOKUP(H58,Tværprofilelement!C$3:C$24,Tværprofilelement!A$3:A$24)","v":{"$error":"#N/A"}},null,null,null,null,null,null,null,null,null,null,null,null,null,{"$f":"LOOKUP(V58,EntrKoder!B$1:B$10,EntrKoder!A$1:A$10)","v":{"$error":"#N/A"}},null," "," "]
[" "," "," "," "," "," ","Alle ",null,{"$f":"LOOKUP(H59,Tværprofilelement!C$3:C$24,Tværprofilelement!A$3:A$24)","v":{"$error":"#N/A"}},null,null,null,null,null,null,null,null,null,null,null,null,null,{"$f":"LOOKUP(V59,EntrKoder!B$1:B$10,EntrKoder!A$1:A$10)","v":{"$error":"#N/A"}},null," "," "]
[" "," "," "," "," "," ","Alle ",null,{"$f":"LOOKUP(H60,Tværprofilelement!C$3:C$24,Tværprofilelement!A$3:A$24)","v":{"$error":"#N/A"}},null,null,null,null,null,null,null,null,null,null,null,null,null,{"$f":"LOOKUP(V60,EntrKoder!B$1:B$10,EntrKoder!A$1:A$10)","v":{"$error":"#N/A"}},null," "," "]
[" "," "," "," "," "," ","Alle ",null,{"$f":"LOOKUP(H61,Tværprofilelement!C$3:C$24,Tværprofilelement!A$3:A$24)","v":{"$error":"#N/A"}},null,null,null,null,null,null,null,null,null,null,null,null,null,{"$f":"LOOKUP(V61,EntrKoder!B$1:B$10,EntrKoder!A$1:A$10)","v":{"$error":"#N/A"}},null," "," "]
[" "," "," "," "," "," ","Alle ",null,{"$f":"LOOKUP(H62,Tværprofilelement!C$3:C$24,Tværprofilelement!A$3:A$24)","v":{"$error":"#N/A"}},null,null,null,null,null,null,null,null,null,null,null,null,null,{"$f":"LOOKUP(V62,EntrKoder!B$1:B$10,EntrKoder!A$1:A$10)","v":{"$error":"#N/A"}},null," "," "]
[" "," "," "," "," "," ","Alle ",null,{"$f":"LOOKUP(H63,Tværprofilelement!C$3:C$24,Tværprofilelement!A$3:A$24)","v":{"$error":"#N/A"}},null,null,null,null,null,null,null,null,null,null,null,null,null,{"$f":"LOOKUP(V63,EntrKoder!B$1:B$10,EntrKoder!A$1:A$10)","v":{"$error":"#N/A"}},null," "," "]
[" "," "," "," "," "," ","Alle ",null,{"$f":"LOOKUP(H64,Tværprofilelement!C$3:C$24,Tværprofilelement!A$3:A$24)","v":{"$error":"#N/A"}},null,null,null,null,null,null,null,null,null,null,null,null,null,{"$f":"LOOKUP(V64,EntrKoder!B$1:B$10,EntrKoder!A$1:A$10)","v":{"$error":"#N/A"}},null," "," "]
[" "," "," "," "," "," ","Alle ",null,{"$f":"LOOKUP(H65,Tværprofilelement!C$3:C$24,Tværprofilelement!A$3:A$24)","v":{"$error":"#N/A"}},null,null,null,null,null,null,null,null,null,null,null,null,null,{"$f":"LOOKUP(V65,EntrKoder!B$1:B$10,EntrKoder!A$1:A$10)","v":{"$error":"#N/A"}},null," "," "]
[" "," "," "," "," "," ","Alle ",null,{"$f":"LOOKUP(H66,Tværprofilelement!C$3:C$24,Tværprofilelement!A$3:A$24)","v":{"$error":"#N/A"}},null,null,null,null,null,null,null,null,null,null,null,null,null,{"$f":"LOOKUP(V66,EntrKoder!B$1:B$10,EntrKoder!A$1:A$10)","v":{"$error":"#N/A"}},null," "," "]
[" "," "," "," "," "," ","Alle ",null,{"$f":"LOOKUP(H67,Tværprofilelement!C$3:C$24,Tværprofilelement!A$3:A$24)","v":{"$error":"#N/A"}},null,null,null,null,null,null,null,null,null,null,null,null,null,{"$f":"LOOKUP(V67,EntrKoder!B$1:B$10,EntrKoder!A$1:A$10)","v":{"$error":"#N/A"}},null," "," "]
[" "," "," "," "," "," ","Alle ",null,{"$f":"LOOKUP(H68,Tværprofilelement!C$3:C$24,Tværprofilelement!A$3:A$24)","v":{"$error":"#N/A"}},null,null,null,null,null,null,null,null,null,null,null,null,null,{"$f":"LOOKUP(V68,EntrKoder!B$1:B$10,EntrKoder!A$1:A$10)","v":{"$error":"#N/A"}},null," "," "]
[" "," "," "," "," "," ","Alle ",null,{"$f":"LOOKUP(H69,Tværprofilelement!C$3:C$24,Tværprofilelement!A$3:A$24)","v":{"$error":"#N/A"}},null,null,null,null,null,null,null,null,null,null,null,null,null,{"$f":"LOOKUP(V69,EntrKoder!B$1:B$10,EntrKoder!A$1:A$10)","v":{"$error":"#N/A"}},null," "," "]
[" "," "," "," "," "," ","Alle ",null,{"$f":"LOOKUP(H70,Tværprofilelement!C$3:C$24,Tværprofilelement!A$3:A$24)","v":{"$error":"#N/A"}},null,null,null,null,null,null,null,null,null,null,null,null,null,{"$f":"LOOKUP(V70,EntrKoder!B$1:B$10,EntrKoder!A$1:A$10)","v":{"$error":"#N/A"}},null," "," "]
[" "," "," "," "," "," ","Alle ",null,{"$f":"LOOKUP(H71,Tværprofilelement!C$3:C$24,Tværprofilelement!A$3:A$24)","v":{"$error":"#N/A"}},null,null,null,null,null,null,null,null,null,null,null,null,null,{"$f":"LOOKUP(V71,EntrKoder!B$1:B$10,EntrKoder!A$1:A$10)","v":{"$error":"#N/A"}},null," "," "]
[" "," "," "," "," "," ","Alle ",null,{"$f":"LOOKUP(H72,Tværprofilelement!C$3:C$24,Tværprofilelement!A$3:A$24)","v":{"$error":"#N/A"}},null,null,null,null,null,null,null,null,null,null,null,null,null,{"$f":"LOOKUP(V72,EntrKoder!B$1:B$10,EntrKoder!A$1:A$10)","v":{"$error":"#N/A"}},null," "," "]
[" "," "," "," "," "," ","Alle ",null,{"$f":"LOOKUP(H73,Tværprofilelement!C$3:C$24,Tværprofilelement!A$3:A$24)","v":{"$error":"#N/A"}},null,null,null,null,null,null,null,null,null,null,null,null,null,{"$f":"LOOKUP(V73,EntrKoder!B$1:B$10,EntrKoder!A$1:A$10)","v":{"$error":"#N/A"}},null," "," "]
[" "," "," "," "," "," ","Alle ",null,{"$f":"LOOKUP(H74,Tværprofilelement!C$3:C$24,Tværprofilelement!A$3:A$24)","v":{"$error":"#N/A"}},null,null,null,null,null,null,null,null,null,null,null,null,null,{"$f":"LOOKUP(V74,EntrKoder!B$1:B$10,EntrKoder!A$1:A$10)","v":{"$error":"#N/A"}},null," "," "]
[" "," "," "," "," "," ","Alle ",null,{"$f":"LOOKUP(H75,Tværprofilelement!C$3:C$24,Tværprofilelement!A$3:A$24)","v":{"$error":"#N/A"}},null,null,null,null,null,null,null,null,null,null,null,null,null,{"$f":"LOOKUP(V75,EntrKoder!B$1:B$10,EntrKoder!A$1:A$10)","v":{"$error":"#N/A"}},null," "," "]
[" "," "," "," "," "," ","Alle ",null,{"$f":"LOOKUP(H76,Tværprofilelement!C$3:C$24,Tværprofilelement!A$3:A$24)","v":{"$error":"#N/A"}},null,null,null,null,null,null,null,null,null,null,null,null,null,{"$f":"LOOKUP(V76,EntrKoder!B$1:B$10,EntrKoder!A$1:A$10)","v":{"$error":"#N/A"}},null," "," "]
[" "," "," "," "," "," ","Alle ",null,{"$f":"LOOKUP(H77,Tværprofilelement!C$3:C$24,Tværprofilelement!A$3:A$24)","v":{"$error":"#N/A"}},null,null,null,null,null,null,null,null,null,null,null,null,null,{"$f":"LOOKUP(V77,EntrKoder!B$1:B$10,EntrKoder!A$1:A$10)","v":{"$error":"#N/A"}},null," "," "]
[" "," "," "," "," "," ","Alle ",null,{"$f":"LOOKUP(H78,Tværprofilelement!C$3:C$24,Tværprofilelement!A$3:A$24)","v":{"$error":"#N/A"}},null,null,null,null,null,null,null,null,null,null,null,null,null,{"$f":"LOOKUP(V78,EntrKoder!B$1:B$10,EntrKoder!A$1:A$10)","v":{"$error":"#N/A"}},null," "," "]
[" "," "," "," "," "," ","Alle ",null,{"$f":"LOOKUP(H79,Tværprofilelement!C$3:C$24,Tværprofilelement!A$3:A$24)","v":{"$error":"#N/A"}},null,null,null,null,null,null,null,null,null,null,null,null,null,{"$f":"LOOKUP(V79,EntrKoder!B$1:B$10,EntrKoder!A$1:A$10)","v":{"$error":"#N/A"}},null," "," "]
[" "," "," "," "," "," ","Alle ",null,{"$f":"LOOKUP(H80,Tværprofilelement!C$3:C$24,Tværprofilelement!A$3:A$24)","v":{"$error":"#N/A"}},null,null,null,null,null,null,null,null,null,null,null,null,null,{"$f":"LOOKUP(V80,EntrKoder!B$1:B$10,EntrKoder!A$1:A$10)","v":{"$error":"#N/A"}},null," "," "]
[" "," "," "," "," "," ","Alle ",null,{"$f":"LOOKUP(H81,Tværprofilelement!C$3:C$24,Tværprofilelement!A$3:A$24)","v":{"$error":"#N/A"}},null,null,null,null,null,null,null,null,null,null,null,null,null,{"$f":"LOOKUP(V81,EntrKoder!B$1:B$10,EntrKoder!A$1:A$10)","v":{"$error":"#N/A"}},null," "," "]
[" "," "," "," "," "," ","Alle ",null,{"$f":"LOOKUP(H82,Tværprofilelement!C$3:C$24,Tværprofilelement!A$3:A$24)","v":{"$error":"#N/A"}},null,null,null,null,null,null,null,null,null,null,null,null,null,{"$f":"LOOKUP(V82,EntrKoder!B$1:B$10,EntrKoder!A$1:A$10)","v":{"$error":"#N/A"}},null," "," "]
[" "," "," "," "," "," ","Alle ",null,{"$f":"LOOKUP(H83,Tværprofilelement!C$3:C$24,Tværprofilelement!A$3:A$24)","v":{"$error":"#N/A"}},null,null,null,null,null,null,null,null,null,null,null,null,null,{"$f":"LOOKUP(V83,EntrKoder!B$1:B$10,EntrKoder!A$1:A$10)","v":{"$error":"#N/A"}},null," "," "]
[" "," "," "," "," "," ","Alle ",null,{"$f":"LOOKUP(H84,Tværprofilelement!C$3:C$24,Tværprofilelement!A$3:A$24)","v":{"$error":"#N/A"}},null,null,null,null,null,null,null,null,null,null,null,null,null,{"$f":"LOOKUP(V84,EntrKoder!B$1:B$10,EntrKoder!A$1:A$10)","v":{"$error":"#N/A"}},null," "," "]
[" "," "," "," "," "," ","Alle ",null,{"$f":"LOOKUP(H85,Tværprofilelement!C$3:C$24,Tværprofilelement!A$3:A$24)","v":{"$error":"#N/A"}},null,null,null,null,null,null,null,null,null,null,null,null,null,{"$f":"LOOKUP(V85,EntrKoder!B$1:B$10,EntrKoder!A$1:A$10)","v":{"$error":"#N/A"}},null," "," "]
[" "," "," "," "," "," ","Alle ",null,{"$f":"LOOKUP(H86,Tværprofilelement!C$3:C$24,Tværprofilelement!A$3:A$24)","v":{"$error":"#N/A"}},null,null,null,null,null,null,null,null,null,null,null,null,null,{"$f":"LOOKUP(V86,EntrKoder!B$1:B$10,EntrKoder!A$1:A$10)","v":{"$error":"#N/A"}},null," "," "]
[" "," "," "," "," "," ","Alle ",null,{"$f":"LOOKUP(H87,Tværprofilelement!C$3:C$24,Tværprofilelement!A$3:A$24)","v":{"$error":"#N/A"}},null,null,null,null,null,null,null,null,null,null,null,null,null,{"$f":"LOOKUP(V87,EntrKoder!B$1:B$10,EntrKoder!A$1:A$10)","v":{"$error":"#N/A"}},null," "," "]
[" "," "," "," "," "," ","Alle ",null,{"$f":"LOOKUP(H88,Tværprofilelement!C$3:C$24,Tværprofilelement!A$3:A$24)","v":{"$error":"#N/A"}},null,null,null,null,null,null,null,null,null,null,null,null,null,{"$f":"LOOKUP(V88,EntrKoder!B$1:B$10,EntrKoder!A$1:A$10)","v":{"$error":"#N/A"}},null," "," "]
[" "," "," "," "," "," ","Alle ",null,{"$f":"LOOKUP(H89,Tværprofilelement!C$3:C$24,Tværprofilelement!A$3:A$24)","v":{"$error":"#N/A"}},null,null,null,null,null,null,null,null,null,null,null,null,null,{"$f":"LOOKUP(V89,EntrKoder!B$1:B$10,EntrKoder!A$1:A$10)","v":{"$error":"#N/A"}},null," "," "]
[" "," "," "," "," "," ","Alle ",null,{"$f":"LOOKUP(H90,Tværprofilelement!C$3:C$24,Tværprofilelement!A$3:A$24)","v":{"$error":"#N/A"}},null,null,null,null,null,null,null,null,null,null,null,null,null,{"$f":"LOOKUP(V90,EntrKoder!B$1:B$10,EntrKoder!A$1:A$10)","v":{"$error":"#N/A"}},null," "," "]
[" "," "," "," "," "," ","Alle ",null,{"$f":"LOOKUP(H91,Tværprofilelement!C$3:C$24,Tværprofilelement!A$3:A$24)","v":{"$error":"#N/A"}},null,null,null,null,null,null,null,null,null,null,null,null,null,{"$f":"LOOKUP(V91,EntrKoder!B$1:B$10,EntrKoder!A$1:A$10)","v":{"$error":"#N/A"}},null," "," "]
[" "," "," "," "," "," ","Alle ",null,{"$f":"LOOKUP(H92,Tværprofilelement!C$3:C$24,Tværprofilelement!A$3:A$24)","v":{"$error":"#N/A"}},null,null,null,null,null,null,null,null,null,null,null,null,null,{"$f":"LOOKUP(V92,EntrKoder!B$1:B$10,EntrKoder!A$1:A$10)","v":{"$error":"#N/A"}},null," "," "]
[" "," "," "," "," "," ","Alle ",null,{"$f":"LOOKUP(H93,Tværprofilelement!C$3:C$24,Tværprofilelement!A$3:A$24)","v":{"$error":"#N/A"}},null,null,null,null,null,null,null,null,null,null,null,null,null,{"$f":"LOOKUP(V93,EntrKoder!B$1:B$10,EntrKoder!A$1:A$10)","v":{"$error":"#N/A"}},null," "," "]
[" "," "," "," "," "," ","Alle ",null,{"$f":"LOOKUP(H94,Tværprofilelement!C$3:C$24,Tværprofilelement!A$3:A$24)","v":{"$error":"#N/A"}},null,null,null,null,null,null,null,null,null,null,null,null,null,{"$f":"LOOKUP(V94,EntrKoder!B$1:B$10,EntrKoder!A$1:A$10)","v":{"$error":"#N/A"}},null," "," "]
[" "," "," "," "," "," ","Alle ",null,{"$f":"LOOKUP(H95,Tværprofilelement!C$3:C$24,Tværprofilelement!A$3:A$24)","v":{"$error":"#N/A"}},null,null,null,null,null,null,null,null,null,null,null,null,null,{"$f":"LOOKUP(V95,EntrKoder!B$1:B$10,EntrKoder!A$1:A$10)","v":{"$error":"#N/A"}},null," "," "]
[" "," "," "," "," "," ","Alle ",null,{"$f":"LOOKUP(H96,Tværprofilelement!C$3:C$24,Tværprofilelement!A$3:A$24)","v":{"$error":"#N/A"}},null,null,null,null,null,null,null,null,null,null,null,null,null,{"$f":"LOOKUP(V96,EntrKoder!B$1:B$10,EntrKoder!A$1:A$10)","v":{"$error":"#N/A"}},null," "," "]
[" "," "," "," "," "," ","Alle ",null,{"$f":"LOOKUP(H97,Tværprofilelement!C$3:C$24,Tværprofilelement!A$3:A$24)","v":{"$error":"#N/A"}},null,null,null,null,null,null,null,null,null,null,null,null,null,{"$f":"LOOKUP(V97,EntrKoder!B$1:B$10,EntrKoder!A$1:A$10)","v":{"$error":"#N/A"}},null," "," "]
[" "," "," "," "," "," ","Alle ",null,{"$f":"LOOKUP(H98,Tværprofilelement!C$3:C$24,Tværprofilelement!A$3:A$24)","v":{"$error":"#N/A"}},null,null,null,null,null,null,null,null,null,null,null,null,null,{"$f":"LOOKUP(V98,EntrKoder!B$1:B$10,EntrKoder!A$1:A$10)","v":{"$error":"#N/A"}},null," "," "]
[" "," "," "," "," "," ","Alle ",null,{"$f":"LOOKUP(H99,Tværprofilelement!C$3:C$24,Tværprofilelement!A$3:A$24)","v":{"$error":"#N/A"}},null,null,null,null,null,null,null,null,null,null,null,null,null,{"$f":"LOOKUP(V99,EntrKoder!B$1:B$10,EntrKoder!A$1:A$10)","v":{"$error":"#N/A"}},null," "," "]
[" "," "," "," "," "," ","Alle ",null,{"$f":"LOOKUP(H100,Tværprofilelement!C$3:C$24,Tværprofilelement!A$3:A$24)","v":{"$error":"#N/A"}},null,null,null,null,null,null,null,null,null,null,null,null,null,{"$f":"LOOKUP(V100,EntrKoder!B$1:B$10,EntrKoder!A$1:A$10)","v":{"$error":"#N/A"}},null," "," "]
[" "," "," "," "," "," ","Alle ",null,{"$f":"LOOKUP(H101,Tværprofilelement!C$3:C$24,Tværprofilelement!A$3:A$24)","v":{"$error":"#N/A"}},null,null,null,null,null,null,null,null,null,null,null,null,null,{"$f":"LOOKUP(V101,EntrKoder!B$1:B$10,EntrKoder!A$1:A$10)","v":{"$error":"#N/A"}},null," "," "]
[" "," "," "," "," "," ","Alle ",null,{"$f":"LOOKUP(H102,Tværprofilelement!C$3:C$24,Tværprofilelement!A$3:A$24)","v":{"$error":"#N/A"}},null,null,null,null,null,null,null,null,null,null,null,null,null,{"$f":"LOOKUP(V102,EntrKoder!B$1:B$10,EntrKoder!A$1:A$10)","v":{"$error":"#N/A"}},null," "," "]
[" "," "," "," "," "," ","Alle ",null,{"$f":"LOOKUP(H103,Tværprofilelement!C$3:C$24,Tværprofilelement!A$3:A$24)","v":{"$error":"#N/A"}},null,null,null,null,null,null,null,null,null,null,null,null,null,{"$f":"LOOKUP(V103,EntrKoder!B$1:B$10,EntrKoder!A$1:A$10)","v":{"$error":"#N/A"}},null," "," "]
[" "," "," "," "," "," ","Alle ",null,{"$f":"LOOKUP(H104,Tværprofilelement!C$3:C$24,Tværprofilelement!A$3:A$24)","v":{"$error":"#N/A"}},null,null,null,null,null,null,null,null,null,null,null,null,null,{"$f":"LOOKUP(V104,EntrKoder!B$1:B$10,EntrKoder!A$1:A$10)","v":{"$error":"#N/A"}},null," "," "]
[" "," "," "," "," "," ","Alle ",null,{"$f":"LOOKUP(H105,Tværprofilelement!C$3:C$24,Tværprofilelement!A$3:A$24)","v":{"$error":"#N/A"}},null,null,null,null,null,null,null,null,null,null,null,null,null,{"$f":"LOOKUP(V105,EntrKoder!B$1:B$10,EntrKoder!A$1:A$10)","v":{"$error":"#N/A"}},null," "," "]
[" "," "," "," "," "," ","Alle ",null,{"$f":"LOOKUP(H106,Tværprofilelement!C$3:C$24,Tværprofilelement!A$3:A$24)","v":{"$error":"#N/A"}},null,null,null,null,null,null,null,null,null,null,null,null,null,{"$f":"LOOKUP(V106,EntrKoder!B$1:B$10,EntrKoder!A$1:A$10)","v":{"$error":"#N/A"}},null," "," "]
[" "," "," "," "," "," ","Alle ",null,{"$f":"LOOKUP(H107,Tværprofilelement!C$3:C$24,Tværprofilelement!A$3:A$24)","v":{"$error":"#N/A"}},null,null,null,null,null,null,null,null,null,null,null,null,null,{"$f":"LOOKUP(V107,EntrKoder!B$1:B$10,EntrKoder!A$1:A$10)","v":{"$error":"#N/A"}},null," "," "]
[" "," "," "," "," "," ","Alle ",null,{"$f":"LOOKUP(H108,Tværprofilelement!C$3:C$24,Tværprofilelement!A$3:A$24)","v":{"$error":"#N/A"}},null,null,null,null,null,null,null,null,null,null,null,null,null,{"$f":"LOOKUP(V108,EntrKoder!B$1:B$10,EntrKoder!A$1:A$10)","v":{"$error":"#N/A"}},null," "," "]
[" "," "," "," "," "," ","Alle ",null,{"$f":"LOOKUP(H109,Tværprofilelement!C$3:C$24,Tværprofilelement!A$3:A$24)","v":{"$error":"#N/A"}},null,null,null,null,null,null,null,null,null,null,null,null,null,{"$f":"LOOKUP(V109,EntrKoder!B$1:B$10,EntrKoder!A$1:A$10)","v":{"$error":"#N/A"}},null," "," "]
[" "," "," "," "," "," ","Alle ",null,{"$f":"LOOKUP(H110,Tværprofilelement!C$3:C$24,Tværprofilelement!A$3:A$24)","v":{"$error":"#N/A"}},null,null,null,null,null,null,null,null,null,null,null,null,null,{"$f":"LOOKUP(V110,EntrKoder!B$1:B$10,EntrKoder!A$1:A$10)","v":{"$error":"#N/A"}},null," "," "]
[" "," "," "," "," "," ","Alle ",null,{"$f":"LOOKUP(H111,Tværprofilelement!C$3:C$24,Tværprofilelement!A$3:A$24)","v":{"$error":"#N/A"}},null,null,null,null,null,null,null,null,null,null,null,null,null,{"$f":"LOOKUP(V111,EntrKoder!B$1:B$10,EntrKoder!A$1:A$10)","v":{"$error":"#N/A"}},null," "," "]
[" "," "," "," "," "," ","Alle ",null,{"$f":"LOOKUP(H112,Tværprofilelement!C$3:C$24,Tværprofilelement!A$3:A$24)","v":{"$error":"#N/A"}},null,null,null,null,null,null,null,null,null,null,null,null,null,{"$f":"LOOKUP(V112,EntrKoder!B$1:B$10,EntrKoder!A$1:A$10)","v":{"$error":"#N/A"}},null," "," "]
[" "," "," "," "," "," ","Alle ",null,{"$f":"LOOKUP(H113,Tværprofilelement!C$3:C$24,Tværprofilelement!A$3:A$24)","v":{"$error":"#N/A"}},null,null,null,null,null,null,null,null,null,null,null,null,null,{"$f":"LOOKUP(V113,EntrKoder!B$1:B$10,EntrKoder!A$1:A$10)","v":{"$error":"#N/A"}},null," "," "]
[" "," "," "," "," "," ","Alle ",null,{"$f":"LOOKUP(H114,Tværprofilelement!C$3:C$24,Tværprofilelement!A$3:A$24)","v":{"$error":"#N/A"}},null,null,null,null,null,null,null,null,null,null,null,null,null,{"$f":"LOOKUP(V114,EntrKoder!B$1:B$10,EntrKoder!A$1:A$10)","v":{"$error":"#N/A"}},null," "," "]
[" "," "," "," "," "," ","Alle ",null,{"$f":"LOOKUP(H115,Tværprofilelement!C$3:C$24,Tværprofilelement!A$3:A$24)","v":{"$error":"#N/A"}},null,null,null,null,null,null,null,null,null,null,null,null,null,{"$f":"LOOKUP(V115,EntrKoder!B$1:B$10,EntrKoder!A$1:A$10)","v":{"$error":"#N/A"}},null," "," "]
[" "," "," "," "," "," ","Alle ",null,{"$f":"LOOKUP(H116,Tværprofilelement!C$3:C$24,Tværprofilelement!A$3:A$24)","v":{"$error":"#N/A"}},null,null,null,null,null,null,null,null,null,null,null,null,null,{"$f":"LOOKUP(V116,EntrKoder!B$1:B$10,EntrKoder!A$1:A$10)","v":{"$error":"#N/A"}},null," "," "]
[" "," "," "," "," "," ","Alle ",null,{"$f":"LOOKUP(H117,Tværprofilelement!C$3:C$24,Tværprofilelement!A$3:A$24)","v":{"$error":"#N/A"}},null,null,null,null,null,null,null,null,null,null,null,null,null,{"$f":"LOOKUP(V117,EntrKoder!B$1:B$10,EntrKoder!A$1:A$10)","v":{"$error":"#N/A"}},null," "," "]
[" "," "," "," "," "," ","Alle ",null,{"$f":"LOOKUP(H118,Tværprofilelement!C$3:C$24,Tværprofilelement!A$3:A$24)","v":{"$error":"#N/A"}},null,null,null,null,null,null,null,null,null,null,null,null,null,{"$f":"LOOKUP(V118,EntrKoder!B$1:B$10,EntrKoder!A$1:A$10)","v":{"$error":"#N/A"}},null," "," "]
[" "," "," "," "," "," ","Alle ",null,{"$f":"LOOKUP(H119,Tværprofilelement!C$3:C$24,Tværprofilelement!A$3:A$24)","v":{"$error":"#N/A"}},null,null,null,null,null,null,null,null,null,null,null,null,null,{"$f":"LOOKUP(V119,EntrKoder!B$1:B$10,EntrKoder!A$1:A$10)","v":{"$error":"#N/A"}},null," "," "]
[" "," "," "," "," "," ","Alle ",null,{"$f":"LOOKUP(H120,Tværprofilelement!C$3:C$24,Tværprofilelement!A$3:A$24)","v":{"$error":"#N/A"}},null,null,null,null,null,null,null,null,null,null,null,null,null,{"$f":"LOOKUP(V120,EntrKoder!B$1:B$10,EntrKoder!A$1:A$10)","v":{"$error":"#N/A"}},null," "," "]
[" "," "," "," "," "," ","Alle ",null,{"$f":"LOOKUP(H121,Tværprofilelement!C$3:C$24,Tværprofilelement!A$3:A$24)","v":{"$error":"#N/A"}},null,null,null,null,null,null,null,null,null,null,null,null,null,{"$f":"LOOKUP(V121,EntrKoder!B$1:B$10,EntrKoder!A$1:A$10)","v":{"$error":"#N/A"}},null," "," "]
[" "," "," "," "," "," ","Alle ",null,{"$f":"LOOKUP(H122,Tværprofilelement!C$3:C$24,Tværprofilelement!A$3:A$24)","v":{"$error":"#N/A"}},null,null,null,null,null,null,null,null,null,null,null,null,null,{"$f":"LOOKUP(V122,EntrKoder!B$1:B$10,EntrKoder!A$1:A$10)","v":{"$error":"#N/A"}},null," "," "]
[" "," "," "," "," "," ","Alle ",null,{"$f":"LOOKUP(H123,Tværprofilelement!C$3:C$24,Tværprofilelement!A$3:A$24)","v":{"$error":"#N/A"}},null,null,null,null,null,null,null,null,null,null,null,null,null,{"$f":"LOOKUP(V123,EntrKoder!B$1:B$10,EntrKoder!A$1:A$10)","v":{"$error":"#N/A"}},null," "," "]
[" "," "," "," "," "," ","Alle ",null,{"$f":"LOOKUP(H124,Tværprofilelement!C$3:C$24,Tværprofilelement!A$3:A$24)","v":{"$error":"#N/A"}},null,null,null,null,null,null,null,null,null,null,null,null,null,{"$f":"LOOKUP(V124,EntrKoder!B$1:B$10,EntrKoder!A$1:A$10)","v":{"$error":"#N/A"}},null," "," "]
[" "," "," "," "," "," ","Alle ",null,{"$f":"LOOKUP(H125,Tværprofilelement!C$3:C$24,Tværprofilelement!A$3:A$24)","v":{"$error":"#N/A"}},null,null,null,null,null,null,null,null,null,null,null,null,null,{"$f":"LOOKUP(V125,EntrKoder!B$1:B$10,EntrKoder!A$1:A$10)","v":{"$error":"#N/A"}},null," "," "]
[" "," "," "," "," "," ","Alle ",null,{"$f":"LOOKUP(H126,Tværprofilelement!C$3:C$24,Tværprofilelement!A$3:A$24)","v":{"$error":"#N/A"}},null,null,null,null,null,null,null,null,null,null,null,null,null,{"$f":"LOOKUP(V126,EntrKoder!B$1:B$10,EntrKoder!A$1:A$10)","v":{"$error":"#N/A"}},null," "," "]
[" "," "," "," "," "," ","Alle ",null,{"$f":"LOOKUP(H127,Tværprofilelement!C$3:C$24,Tværprofilelement!A$3:A$24)","v":{"$error":"#N/A"}},null,null,null,null,null,null,null,null,null,null,null,null,null,{"$f":"LOOKUP(V127,EntrKoder!B$1:B$10,EntrKoder!A$1:A$10)","v":{"$error":"#N/A"}},null," "," "]
[" "," "," "," "," "," ","Alle ",null,{"$f":"LOOKUP(H128,Tværprofilelement!C$3:C$24,Tværprofilelement!A$3:A$24)","v":{"$error":"#N/A"}},null,null,null,null,null,null,null,null,null,null,null,null,null,{"$f":"LOOKUP(V128,EntrKoder!B$1:B$10,EntrKoder!A$1:A$10)","v":{"$error":"#N/A"}},null," "," "]
[" "," "," "," "," "," ","Alle ",null,{"$f":"LOOKUP(H129,Tværprofilelement!C$3:C$24,Tværprofilelement!A$3:A$24)","v":{"$error":"#N/A"}},null,null,null,null,null,null,null,null,null,null,null,null,null,{"$f":"LOOKUP(V129,EntrKoder!B$1:B$10,EntrKoder!A$1:A$10)","v":{"$error":"#N/A"}},null," "," "]
[" "," "," "," "," "," ","Alle ",null,{"$f":"LOOKUP(H130,Tværprofilelement!C$3:C$24,Tværprofilelement!A$3:A$24)","v":{"$error":"#N/A"}},null,null,null,null,null,null,null,null,null,null,null,null,null,{"$f":"LOOKUP(V130,EntrKoder!B$1:B$10,EntrKoder!A$1:A$10)","v":{"$error":"#N/A"}},null," "," "]
[" "," "," "," "," "," ","Alle ",null,{"$f":"LOOKUP(H131,Tværprofilelement!C$3:C$24,Tværprofilelement!A$3:A$24)","v":{"$error":"#N/A"}},null,null,null,null,null,null,null,null,null,null,null,null,null,{"$f":"LOOKUP(V131,EntrKoder!B$1:B$10,EntrKoder!A$1:A$10)","v":{"$error":"#N/A"}},null," "," "]
[" "," "," "," "," "," ","Alle ",null,{"$f":"LOOKUP(H132,Tværprofilelement!C$3:C$24,Tværprofilelement!A$3:A$24)","v":{"$error":"#N/A"}},null,null,null,null,null,null,null,null,null,null,null,null,null,{"$f":"LOOKUP(V132,EntrKoder!B$1:B$10,EntrKoder!A$1:A$10)","v":{"$error":"#N/A"}},null," "," "]
[" "," "," "," "," "," ","Alle ",null,{"$f":"LOOKUP(H133,Tværprofilelement!C$3:C$24,Tværprofilelement!A$3:A$24)","v":{"$error":"#N/A"}},null,null,null,null,null,null,null,null,null,null,null,null,null,{"$f":"LOOKUP(V133,EntrKoder!B$1:B$10,EntrKoder!A$1:A$10)","v":{"$error":"#N/A"}},null," "," "]
[" "," "," "," "," "," ","Alle ",null,{"$f":"LOOKUP(H134,Tværprofilelement!C$3:C$24,Tværprofilelement!A$3:A$24)","v":{"$error":"#N/A"}},null,null,null,null,null,null,null,null,null,null,null,null,null,{"$f":"LOOKUP(V134,EntrKoder!B$1:B$10,EntrKoder!A$1:A$10)","v":{"$error":"#N/A"}},null," "," "]
[" "," "," "," "," "," ","Alle ",null,{"$f":"LOOKUP(H135,Tværprofilelement!C$3:C$24,Tværprofilelement!A$3:A$24)","v":{"$error":"#N/A"}},null,null,null,null,null,null,null,null,null,null,null,null,null,{"$f":"LOOKUP(V135,EntrKoder!B$1:B$10,EntrKoder!A$1:A$10)","v":{"$error":"#N/A"}},null," "," "]
[" "," "," "," "," "," ","Alle ",null,{"$f":"LOOKUP(H136,Tværprofilelement!C$3:C$24,Tværprofilelement!A$3:A$24)","v":{"$error":"#N/A"}},null,null,null,null,null,null,null,null,null,null,null,null,null,{"$f":"LOOKUP(V136,EntrKoder!B$1:B$10,EntrKoder!A$1:A$10)","v":{"$error":"#N/A"}},null," "," "]
[" "," "," "," "," "," ","Alle ",null,{"$f":"LOOKUP(H137,Tværprofilelement!C$3:C$24,Tværprofilelement!A$3:A$24)","v":{"$error":"#N/A"}},null,null,null,null,null,null,null,null,null,null,null,null,null,{"$f":"LOOKUP(V137,EntrKoder!B$1:B$10,EntrKoder!A$1:A$10)","v":{"$error":"#N/A"}},null," "," "]
[" "," "," "," "," "," ","Alle ",null,{"$f":"LOOKUP(H138,Tværprofilelement!C$3:C$24,Tværprofilelement!A$3:A$24)","v":{"$error":"#N/A"}},null,null,null,null,null,null,null,null,null,null,null,null,null,{"$f":"LOOKUP(V138,EntrKoder!B$1:B$10,EntrKoder!A$1:A$10)","v":{"$error":"#N/A"}},null," "," "]
[" "," "," "," "," "," ","Alle ",null,{"$f":"LOOKUP(H139,Tværprofilelement!C$3:C$24,Tværprofilelement!A$3:A$24)","v":{"$error":"#N/A"}},null,null,null,null,null,null,null,null,null,null,null,null,null,{"$f":"LOOKUP(V139,EntrKoder!B$1:B$10,EntrKoder!A$1:A$10)","v":{"$error":"#N/A"}},null," "," "]
[" "," "," "," "," "," ","Alle ",null,{"$f":"LOOKUP(H140,Tværprofilelement!C$3:C$24,Tværprofilelement!A$3:A$24)","v":{"$error":"#N/A"}},null,null,null,null,null,null,null,null,null,null,null,null,null,{"$f":"LOOKUP(V140,EntrKoder!B$1:B$10,EntrKoder!A$1:A$10)","v":{"$error":"#N/A"}},null," "," "]
[" "," "," "," "," "," ","Alle ",null,{"$f":"LOOKUP(H141,Tværprofilelement!C$3:C$24,Tværprofilelement!A$3:A$24)","v":{"$error":"#N/A"}},null,null,null,null,null,null,null,null,null,null,null,null,null,{"$f":"LOOKUP(V141,EntrKoder!B$1:B$10,EntrKoder!A$1:A$10)","v":{"$error":"#N/A"}},null," "," "]
[" "," "," "," "," "," ","Alle ",null,{"$f":"LOOKUP(H142,Tværprofilelement!C$3:C$24,Tværprofilelement!A$3:A$24)","v":{"$error":"#N/A"}},null,null,null,null,null,null,null,null,null,null,null,null,null,{"$f":"LOOKUP(V142,EntrKoder!B$1:B$10,EntrKoder!A$1:A$10)","v":{"$error":"#N/A"}},null," "," "]
[" "," "," "," "," "," ","Alle ",null,{"$f":"LOOKUP(H143,Tværprofilelement!C$3:C$24,Tværprofilelement!A$3:A$24)","v":{"$error":"#N/A"}},null,null,null,null,null,null,null,null,null,null,null,null,null,{"$f":"LOOKUP(V143,EntrKoder!B$1:B$10,EntrKoder!A$1:A$10)","v":{"$error":"#N/A"}},null," "," "]
[" "," "," "," "," "," ","Alle ",null,{"$f":"LOOKUP(H144,Tværprofilelement!C$3:C$24,Tværprofilelement!A$3:A$24)","v":{"$error":"#N/A"}},null,null,null,null,null,null,null,null,null,null,null,null,null,{"$f":"LOOKUP(V144,EntrKoder!B$1:B$10,EntrKoder!A$1:A$10)","v":{"$error":"#N/A"}},null," "," "]
[" "," "," "," "," "," ","Alle ",null,{"$f":"LOOKUP(H145,Tværprofilelement!C$3:C$24,Tværprofilelement!A$3:A$24)","v":{"$error":"#N/A"}},null,null,null,null,null,null,null,null,null,null,null,null,null,{"$f":"LOOKUP(V145,EntrKoder!B$1:B$10,EntrKoder!A$1:A$10)","v":{"$error":"#N/A"}},null," "," "]
[" "," "," "," "," "," ","Alle ",null,{"$f":"LOOKUP(H146,Tværprofilelement!C$3:C$24,Tværprofilelement!A$3:A$24)","v":{"$error":"#N/A"}},null,null,null,null,null,null,null,null,null,null,null,null,null,{"$f":"LOOKUP(V146,EntrKoder!B$1:B$10,EntrKoder!A$1:A$10)","v":{"$error":"#N/A"}},null," "," "]
[" "," "," "," "," "," ","Alle ",null,{"$f":"LOOKUP(H147,Tværprofilelement!C$3:C$24,Tværprofilelement!A$3:A$24)","v":{"$error":"#N/A"}},null,null,null,null,null,null,null,null,null,null,null,null,null,{"$f":"LOOKUP(V147,EntrKoder!B$1:B$10,EntrKoder!A$1:A$10)","v":{"$error":"#N/A"}},null," "," "]
[" "," "," "," "," "," ","Alle ",null,{"$f":"LOOKUP(H148,Tværprofilelement!C$3:C$24,Tværprofilelement!A$3:A$24)","v":{"$error":"#N/A"}},null,null,null,null,null,null,null,null,null,null,null,null,null,{"$f":"LOOKUP(V148,EntrKoder!B$1:B$10,EntrKoder!A$1:A$10)","v":{"$error":"#N/A"}},null," "," "]
[" "," "," "," "," "," ","Alle ",null,{"$f":"LOOKUP(H149,Tværprofilelement!C$3:C$24,Tværprofilelement!A$3:A$24)","v":{"$error":"#N/A"}},null,null,null,null,null,null,null,null,null,null,null,null,null,{"$f":"LOOKUP(V149,EntrKoder!B$1:B$10,EntrKoder!A$1:A$10)","v":{"$error":"#N/A"}},null," "," "]
[" "," "," "," "," "," ","Alle ",null,{"$f":"LOOKUP(H150,Tværprofilelement!C$3:C$24,Tværprofilelement!A$3:A$24)","v":{"$error":"#N/A"}},null,null,null,null,null,null,null,null,null,null,null,null,null,{"$f":"LOOKUP(V150,EntrKoder!B$1:B$10,EntrKoder!A$1:A$10)","v":{"$error":"#N/A"}},null," "," "]
[" "," "," "," "," "," ","Alle ",null,{"$f":"LOOKUP(H151,Tværprofilelement!C$3:C$24,Tværprofilelement!A$3:A$24)","v":{"$error":"#N/A"}},null,null,null,null,null,null,null,null,null,null,null,null,null,{"$f":"LOOKUP(V151,EntrKoder!B$1:B$10,EntrKoder!A$1:A$10)","v":{"$error":"#N/A"}},null," "," "]
[" "," "," "," "," "," ","Alle ",null,{"$f":"LOOKUP(H152,Tværprofilelement!C$3:C$24,Tværprofilelement!A$3:A$24)","v":{"$error":"#N/A"}},null,null,null,null,null,null,null,null,null,null,null,null,null,{"$f":"LOOKUP(V152,EntrKoder!B$1:B$10,EntrKoder!A$1:A$10)","v":{"$error":"#N/A"}},null," "," "]
[" "," "," "," "," "," ","Alle ",null,{"$f":"LOOKUP(H153,Tværprofilelement!C$3:C$24,Tværprofilelement!A$3:A$24)","v":{"$error":"#N/A"}},null,null,null,null,null,null,null,null,null,null,null,null,null,{"$f":"LOOKUP(V153,EntrKoder!B$1:B$10,EntrKoder!A$1:A$10)","v":{"$error":"#N/A"}},null," "," "]
[" "," "," "," "," "," ","Alle ",null,{"$f":"LOOKUP(H154,Tværprofilelement!C$3:C$24,Tværprofilelement!A$3:A$24)","v":{"$error":"#N/A"}},null,null,null,null,null,null,null,null,null,null,null,null,null,{"$f":"LOOKUP(V154,EntrKoder!B$1:B$10,EntrKoder!A$1:A$10)","v":{"$error":"#N/A"}},null," "," "]
[" "," "," "," "," "," ","Alle ",null,{"$f":"LOOKUP(H155,Tværprofilelement!C$3:C$24,Tværprofilelement!A$3:A$24)","v":{"$error":"#N/A"}},null,null,null,null,null,null,null,null,null,null,null,null,null,{"$f":"LOOKUP(V155,EntrKoder!B$1:B$10,EntrKoder!A$1:A$10)","v":{"$error":"#N/A"}},null," "," "]
[" "," "," "," "," "," ","Alle ",null,{"$f":"LOOKUP(H156,Tværprofilelement!C$3:C$24,Tværprofilelement!A$3:A$24)","v":{"$error":"#N/A"}},null,null,null,null,null,null,null,null,null,null,null,null,null,{"$f":"LOOKUP(V156,EntrKoder!B$1:B$10,EntrKoder!A$1:A$10)","v":{"$error":"#N/A"}},null," "," "]
[" "," "," "," "," "," ","Alle ",null,{"$f":"LOOKUP(H157,Tværprofilelement!C$3:C$24,Tværprofilelement!A$3:A$24)","v":{"$error":"#N/A"}},null,null,null,null,null,null,null,null,null,null,null,null,null,{"$f":"LOOKUP(V157,EntrKoder!B$1:B$10,EntrKoder!A$1:A$10)","v":{"$error":"#N/A"}},null," "," "]
[" "," "," "," "," "," ","Alle ",null,{"$f":"LOOKUP(H158,Tværprofilelement!C$3:C$24,Tværprofilelement!A$3:A$24)","v":{"$error":"#N/A"}},null,null,null,null,null,null,null,null,null,null,null,null,null,{"$f":"LOOKUP(V158,EntrKoder!B$1:B$10,EntrKoder!A$1:A$10)","v":{"$error":"#N/A"}},null," "," "]
[" "," "," "," "," "," ","Alle ",null,{"$f":"LOOKUP(H159,Tværprofilelement!C$3:C$24,Tværprofilelement!A$3:A$24)","v":{"$error":"#N/A"}},null,null,null,null,null,null,null,null,null,null,null,null,null,{"$f":"LOOKUP(V159,EntrKoder!B$1:B$10,EntrKoder!A$1:A$10)","v":{"$error":"#N/A"}},null," "," "]
[" "," "," "," "," "," ","Alle ",null,{"$f":"LOOKUP(H160,Tværprofilelement!C$3:C$24,Tværprofilelement!A$3:A$24)","v":{"$error":"#N/A"}},null,null,null,null,null,null,null,null,null,null,null,null,null,{"$f":"LOOKUP(V160,EntrKoder!B$1:B$10,EntrKoder!A$1:A$10)","v":{"$error":"#N/A"}},null," "," "]
[" "," "," "," "," "," ","Alle ",null,{"$f":"LOOKUP(H161,Tværprofilelement!C$3:C$24,Tværprofilelement!A$3:A$24)","v":{"$error":"#N/A"}},null,null,null,null,null,null,null,null,null,null,null,null,null,{"$f":"LOOKUP(V161,EntrKoder!B$1:B$10,EntrKoder!A$1:A$10)","v":{"$error":"#N/A"}},null," "," "]
[" "," "," "," "," "," ","Alle ",null,{"$f":"LOOKUP(H162,Tværprofilelement!C$3:C$24,Tværprofilelement!A$3:A$24)","v":{"$error":"#N/A"}},null,null,null,null,null,null,null,null,null,null,null,null,null,{"$f":"LOOKUP(V162,EntrKoder!B$1:B$10,EntrKoder!A$1:A$10)","v":{"$error":"#N/A"}},null," "," "]
[" "," "," "," "," "," ","Alle ",null,{"$f":"LOOKUP(H163,Tværprofilelement!C$3:C$24,Tværprofilelement!A$3:A$24)","v":{"$error":"#N/A"}},null,null,null,null,null,null,null,null,null,null,null,null,null,{"$f":"LOOKUP(V163,EntrKoder!B$1:B$10,EntrKoder!A$1:A$10)","v":{"$error":"#N/A"}},null," "," "]
[" "," "," "," "," "," ","Alle ",null,{"$f":"LOOKUP(H164,Tværprofilelement!C$3:C$24,Tværprofilelement!A$3:A$24)","v":{"$error":"#N/A"}},null,null,null,null,null,null,null,null,null,null,null,null,null,{"$f":"LOOKUP(V164,EntrKoder!B$1:B$10,EntrKoder!A$1:A$10)","v":{"$error":"#N/A"}},null," "," "]
[" "," "," "," "," "," ","Alle ",null,{"$f":"LOOKUP(H165,Tværprofilelement!C$3:C$24,Tværprofilelement!A$3:A$24)","v":{"$error":"#N/A"}},null,null,null,null,null,null,null,null,null,null,null,null,null,{"$f":"LOOKUP(V165,EntrKoder!B$1:B$10,EntrKoder!A$1:A$10)","v":{"$error":"#N/A"}},null," "," "]
[" "," "," "," "," "," ","Alle ",null,{"$f":"LOOKUP(H166,Tværprofilelement!C$3:C$24,Tværprofilelement!A$3:A$24)","v":{"$error":"#N/A"}},null,null,null,null,null,null,null,null,null,null,null,null,null,{"$f":"LOOKUP(V166,EntrKoder!B$1:B$10,EntrKoder!A$1:A$10)","v":{"$error":"#N/A"}},null," "," "]
[" "," "," "," "," "," ","Alle ",null,{"$f":"LOOKUP(H167,Tværprofilelement!C$3:C$24,Tværprofilelement!A$3:A$24)","v":{"$error":"#N/A"}},null,null,null,null,null,null,null,null,null,null,null,null,null,{"$f":"LOOKUP(V167,EntrKoder!B$1:B$10,EntrKoder!A$1:A$10)","v":{"$error":"#N/A"}},null," "," "]
[" "," "," "," "," "," ","Alle ",null,{"$f":"LOOKUP(H168,Tværprofilelement!C$3:C$24,Tværprofilelement!A$3:A$24)","v":{"$error":"#N/A"}},null,null,null,null,null,null,null,null,null,null,null,null,null,{"$f":"LOOKUP(V168,EntrKoder!B$1:B$10,EntrKoder!A$1:A$10)","v":{"$error":"#N/A"}},null," "," "]
[" "," "," "," "," "," ","Alle ",null,{"$f":"LOOKUP(H169,Tværprofilelement!C$3:C$24,Tværprofilelement!A$3:A$24)","v":{"$error":"#N/A"}},null,null,null,null,null,null,null,null,null,null,null,null,null,{"$f":"LOOKUP(V169,EntrKoder!B$1:B$10,EntrKoder!A$1:A$10)","v":{"$error":"#N/A"}},null," "," "]
[" "," "," "," "," "," ","Alle ",null,{"$f":"LOOKUP(H170,Tværprofilelement!C$3:C$24,Tværprofilelement!A$3:A$24)","v":{"$error":"#N/A"}},null,null,null,null,null,null,null,null,null,null,null,null,null,{"$f":"LOOKUP(V170,EntrKoder!B$1:B$10,EntrKoder!A$1:A$10)","v":{"$error":"#N/A"}},null," "," "]
[" "," "," "," "," "," ","Alle ",null,{"$f":"LOOKUP(H171,Tværprofilelement!C$3:C$24,Tværprofilelement!A$3:A$24)","v":{"$error":"#N/A"}},null,null,null,null,null,null,null,null,null,null,null,null,null,{"$f":"LOOKUP(V171,EntrKoder!B$1:B$10,EntrKoder!A$1:A$10)","v":{"$error":"#N/A"}},null," "," "]
[" "," "," "," "," "," ","Alle ",null,{"$f":"LOOKUP(H172,Tværprofilelement!C$3:C$24,Tværprofilelement!A$3:A$24)","v":{"$error":"#N/A"}},null,null,null,null,null,null,null,null,null,null,null,null,null,{"$f":"LOOKUP(V172,EntrKoder!B$1:B$10,EntrKoder!A$1:A$10)","v":{"$error":"#N/A"}},null," "," "]
[" "," "," "," "," "," ","Alle ",null,{"$f":"LOOKUP(H173,Tværprofilelement!C$3:C$24,Tværprofilelement!A$3:A$24)","v":{"$error":"#N/A"}},null,null,null,null,null,null,null,null,null,null,null,null,null,{"$f":"LOOKUP(V173,EntrKoder!B$1:B$10,EntrKoder!A$1:A$10)","v":{"$error":"#N/A"}},null," "," "]
[" "," "," "," "," "," ","Alle ",null,{"$f":"LOOKUP(H174,Tværprofilelement!C$3:C$24,Tværprofilelement!A$3:A$24)","v":{"$error":"#N/A"}},null,null,null,null,null,null,null,null,null,null,null,null,null,{"$f":"LOOKUP(V174,EntrKoder!B$1:B$10,EntrKoder!A$1:A$10)","v":{"$error":"#N/A"}},null," "," "]
[" "," "," "," "," "," ","Alle ",null,{"$f":"LOOKUP(H175,Tværprofilelement!C$3:C$24,Tværprofilelement!A$3:A$24)","v":{"$error":"#N/A"}},null,null,null,null,null,null,null,null,null,null,null,null,null,{"$f":"LOOKUP(V175,EntrKoder!B$1:B$10,EntrKoder!A$1:A$10)","v":{"$error":"#N/A"}},null," "," "]
[" "," "," "," "," "," ","Alle ",null,{"$f":"LOOKUP(H176,Tværprofilelement!C$3:C$24,Tværprofilelement!A$3:A$24)","v":{"$error":"#N/A"}},null,null,null,null,null,null,null,null,null,null,null,null,null,{"$f":"LOOKUP(V176,EntrKoder!B$1:B$10,EntrKoder!A$1:A$10)","v":{"$error":"#N/A"}},null," "," "]
[" "," "," "," "," "," ","Alle ",null,{"$f":"LOOKUP(H177,Tværprofilelement!C$3:C$24,Tværprofilelement!A$3:A$24)","v":{"$error":"#N/A"}},null,null,null,null,null,null,null,null,null,null,null,null,null,{"$f":"LOOKUP(V177,EntrKoder!B$1:B$10,EntrKoder!A$1:A$10)","v":{"$error":"#N/A"}},null," "," "]
[" "," "," "," "," "," ","Alle ",null,{"$f":"LOOKUP(H178,Tværprofilelement!C$3:C$24,Tværprofilelement!A$3:A$24)","v":{"$error":"#N/A"}},null,null,null,null,null,null,null,null,null,null,null,null,null,{"$f":"LOOKUP(V178,EntrKoder!B$1:B$10,EntrKoder!A$1:A$10)","v":{"$error":"#N/A"}},null," "," "]
[" "," "," "," "," "," ","Alle ",null,{"$f":"LOOKUP(H179,Tværprofilelement!C$3:C$24,Tværprofilelement!A$3:A$24)","v":{"$error":"#N/A"}},null,null,null,null,null,null,null,null,null,null,null,null,null,{"$f":"LOOKUP(V179,EntrKoder!B$1:B$10,EntrKoder!A$1:A$10)","v":{"$error":"#N/A"}},null," "," "]
[" "," "," "," "," "," ","Alle ",null,{"$f":"LOOKUP(H180,Tværprofilelement!C$3:C$24,Tværprofilelement!A$3:A$24)","v":{"$error":"#N/A"}},null,null,null,null,null,null,null,null,null,null,null,null,null,{"$f":"LOOKUP(V180,EntrKoder!B$1:B$10,EntrKoder!A$1:A$10)","v":{"$error":"#N/A"}},null," "," "]
[" "," "," "," "," "," ","Alle ",null,{"$f":"LOOKUP(H181,Tværprofilelement!C$3:C$24,Tværprofilelement!A$3:A$24)","v":{"$error":"#N/A"}},null,null,null,null,null,null,null,null,null,null,null,null,null,{"$f":"LOOKUP(V181,EntrKoder!B$1:B$10,EntrKoder!A$1:A$10)","v":{"$error":"#N/A"}},null," "," "]
[" "," "," "," "," "," ","Alle ",null,{"$f":"LOOKUP(H182,Tværprofilelement!C$3:C$24,Tværprofilelement!A$3:A$24)","v":{"$error":"#N/A"}},null,null,null,null,null,null,null,null,null,null,null,null,null,{"$f":"LOOKUP(V182,EntrKoder!B$1:B$10,EntrKoder!A$1:A$10)","v":{"$error":"#N/A"}},null," "," "]
[" "," "," "," "," "," ","Alle ",null,{"$f":"LOOKUP(H183,Tværprofilelement!C$3:C$24,Tværprofilelement!A$3:A$24)","v":{"$error":"#N/A"}},null,null,null,null,null,null,null,null,null,null,null,null,null,{"$f":"LOOKUP(V183,EntrKoder!B$1:B$10,EntrKoder!A$1:A$10)","v":{"$error":"#N/A"}},null," "," "]
[" "," "," "," "," "," ","Alle ",null,{"$f":"LOOKUP(H184,Tværprofilelement!C$3:C$24,Tværprofilelement!A$3:A$24)","v":{"$error":"#N/A"}},null,null,null,null,null,null,null,null,null,null,null,null,null,{"$f":"LOOKUP(V184,EntrKoder!B$1:B$10,EntrKoder!A$1:A$10)","v":{"$error":"#N/A"}},null," "," "]
[" "," "," "," "," "," ","Alle ",null,{"$f":"LOOKUP(H185,Tværprofilelement!C$3:C$24,Tværprofilelement!A$3:A$24)","v":{"$error":"#N/A"}},null,null,null,null,null,null,null,null,null,null,null,null,null,{"$f":"LOOKUP(V185,EntrKoder!B$1:B$10,EntrKoder!A$1:A$10)","v":{"$error":"#N/A"}},null," "," "]
[" "," "," "," "," "," ","Alle ",null,{"$f":"LOOKUP(H186,Tværprofilelement!C$3:C$24,Tværprofilelement!A$3:A$24)","v":{"$error":"#N/A"}},null,null,null,null,null,null,null,null,null,null,null,null,null,{"$f":"LOOKUP(V186,EntrKoder!B$1:B$10,EntrKoder!A$1:A$10)","v":{"$error":"#N/A"}},null," "," "]
[" "," "," "," "," "," ","Alle ",null,{"$f":"LOOKUP(H187,Tværprofilelement!C$3:C$24,Tværprofilelement!A$3:A$24)","v":{"$error":"#N/A"}},null,null,null,null,null,null,null,null,null,null,null,null,null,{"$f":"LOOKUP(V187,EntrKoder!B$1:B$10,EntrKoder!A$1:A$10)","v":{"$error":"#N/A"}},null," "," "]
[" "," "," "," "," "," ","Alle ",null,{"$f":"LOOKUP(H188,Tværprofilelement!C$3:C$24,Tværprofilelement!A$3:A$24)","v":{"$error":"#N/A"}},null,null,null,null,null,null,null,null,null,null,null,null,null,{"$f":"LOOKUP(V188,EntrKoder!B$1:B$10,EntrKoder!A$1:A$10)","v":{"$error":"#N/A"}},null," "," "]
[" "," "," "," "," "," ","Alle ",null,{"$f":"LOOKUP(H189,Tværprofilelement!C$3:C$24,Tværprofilelement!A$3:A$24)","v":{"$error":"#N/A"}},null,null,null,null,null,null,null,null,null,null,null,null,null,{"$f":"LOOKUP(V189,EntrKoder!B$1:B$10,EntrKoder!A$1:A$10)","v":{"$error":"#N/A"}},null," "," "]
[" "," "," "," "," "," ","Alle ",null,{"$f":"LOOKUP(H190,Tværprofilelement!C$3:C$24,Tværprofilelement!A$3:A$24)","v":{"$error":"#N/A"}},null,null,null,null,null,null,null,null,null,null,null,null,null,{"$f":"LOOKUP(V190,EntrKoder!B$1:B$10,EntrKoder!A$1:A$10)","v":{"$error":"#N/A"}},null," "," "]
[" "," "," "," "," "," ","Alle ",null,{"$f":"LOOKUP(H191,Tværprofilelement!C$3:C$24,Tværprofilelement!A$3:A$24)","v":{"$error":"#N/A"}},null,null,null,null,null,null,null,null,null,null,null,null,null,{"$f":"LOOKUP(V191,EntrKoder!B$1:B$10,EntrKoder!A$1:A$10)","v":{"$error":"#N/A"}},null," "," "]
[" "," "," "," "," "," ","Alle ",null,{"$f":"LOOKUP(H192,Tværprofilelement!C$3:C$24,Tværprofilelement!A$3:A$24)","v":{"$error":"#N/A"}},null,null,null,null,null,null,null,null,null,null,null,null,null,{"$f":"LOOKUP(V192,EntrKoder!B$1:B$10,EntrKoder!A$1:A$10)","v":{"$error":"#N/A"}},null," "," "]
[" "," "," "," "," "," ","Alle ",null,{"$f":"LOOKUP(H193,Tværprofilelement!C$3:C$24,Tværprofilelement!A$3:A$24)","v":{"$error":"#N/A"}},null,null,null,null,null,null,null,null,null,null,null,null,null,{"$f":"LOOKUP(V193,EntrKoder!B$1:B$10,EntrKoder!A$1:A$10)","v":{"$error":"#N/A"}},null," "," "]
[" "," "," "," "," "," ","Alle ",null,{"$f":"LOOKUP(H194,Tværprofilelement!C$3:C$24,Tværprofilelement!A$3:A$24)","v":{"$error":"#N/A"}},null,null,null,null,null,null,null,null,null,null,null,null,null,{"$f":"LOOKUP(V194,EntrKoder!B$1:B$10,EntrKoder!A$1:A$10)","v":{"$error":"#N/A"}},null," "," "]
[" "," "," "," "," "," ","Alle ",null,{"$f":"LOOKUP(H195,Tværprofilelement!C$3:C$24,Tværprofilelement!A$3:A$24)","v":{"$error":"#N/A"}},null,null,null,null,null,null,null,null,null,null,null,null,null,{"$f":"LOOKUP(V195,EntrKoder!B$1:B$10,EntrKoder!A$1:A$10)","v":{"$error":"#N/A"}},null," "," "]
[" "," "," "," "," "," ","Alle ",null,{"$f":"LOOKUP(H196,Tværprofilelement!C$3:C$24,Tværprofilelement!A$3:A$24)","v":{"$error":"#N/A"}},null,null,null,null,null,null,null,null,null,null,null,null,null,{"$f":"LOOKUP(V196,EntrKoder!B$1:B$10,EntrKoder!A$1:A$10)","v":{"$error":"#N/A"}},null," "," "]
[" "," "," "," "," "," ","Alle ",null,{"$f":"LOOKUP(H197,Tværprofilelement!C$3:C$24,Tværprofilelement!A$3:A$24)","v":{"$error":"#N/A"}},null,null,null,null,null,null,null,null,null,null,null,null,null,{"$f":"LOOKUP(V197,EntrKoder!B$1:B$10,EntrKoder!A$1:A$10)","v":{"$error":"#N/A"}},null," "," "]
[" "," "," "," "," "," ","Alle ",null,{"$f":"LOOKUP(H198,Tværprofilelement!C$3:C$24,Tværprofilelement!A$3:A$24)","v":{"$error":"#N/A"}},null,null,null,null,null,null,null,null,null,null,null,null,null,{"$f":"LOOKUP(V198,EntrKoder!B$1:B$10,EntrKoder!A$1:A$10)","v":{"$error":"#N/A"}},null," "," "]
[" "," "," "," "," "," ","Alle ",null,{"$f":"LOOKUP(H199,Tværprofilelement!C$3:C$24,Tværprofilelement!A$3:A$24)","v":{"$error":"#N/A"}},null,null,null,null,null,null,null,null,null,null,null,null,null,{"$f":"LOOKUP(V199,EntrKoder!B$1:B$10,EntrKoder!A$1:A$10)","v":{"$error":"#N/A"}},null," "," "]
[" "," "," "," "," "," ","Alle ",null,{"$f":"LOOKUP(H200,Tværprofilelement!C$3:C$24,Tværprofilelement!A$3:A$24)","v":{"$error":"#N/A"}},null,null,null,null,null,null,null,null,null,null,null,null,null,{"$f":"LOOKUP(V200,EntrKoder!B$1:B$10,EntrKoder!A$1:A$10)","v":{"$error":"#N/A"}},null," "," "]
[" "," "," "," "," "," ","Alle ",null,{"$f":"LOOKUP(H201,Tværprofilelement!C$3:C$24,Tværprofilelement!A$3:A$24)","v":{"$error":"#N/A"}},null,null,null,null,null,null,null,null,null,null,null,null,null,{"$f":"LOOKUP(V201,EntrKoder!B$1:B$10,EntrKoder!A$1:A$10)","v":{"$error":"#N/A"}},null," "," "]
[" "," "," "," "," "," ","Alle ",null,{"$f":"LOOKUP(H202,Tværprofilelement!C$3:C$24,Tværprofilelement!A$3:A$24)","v":{"$error":"#N/A"}},null,null,null,null,null,null,null,null,null,null,null,null,null,{"$f":"LOOKUP(V202,EntrKoder!B$1:B$10,EntrKoder!A$1:A$10)","v":{"$error":"#N/A"}},null," "," "]
[" "," "," "," "," "," ","Alle ",null,{"$f":"LOOKUP(H203,Tværprofilelement!C$3:C$24,Tværprofilelement!A$3:A$24)","v":{"$error":"#N/A"}},null,null,null,null,null,null,null,null,null,null,null,null,null,{"$f":"LOOKUP(V203,EntrKoder!B$1:B$10,EntrKoder!A$1:A$10)","v":{"$error":"#N/A"}},null," "," "]
[" "," "," "," "," "," ","Alle ",null,{"$f":"LOOKUP(H204,Tværprofilelement!C$3:C$24,Tværprofilelement!A$3:A$24)","v":{"$error":"#N/A"}},null,null,null,null,null,null,null,null,null,null,null,null,null,{"$f":"LOOKUP(V204,EntrKoder!B$1:B$10,EntrKoder!A$1:A$10)","v":{"$error":"#N/A"}},null," "," "]
[" "," "," "," "," "," ","Alle ",null,{"$f":"LOOKUP(H205,Tværprofilelement!C$3:C$24,Tværprofilelement!A$3:A$24)","v":{"$error":"#N/A"}},null,null,null,null,null,null,null,null,null,null,null,null,null,{"$f":"LOOKUP(V205,EntrKoder!B$1:B$10,EntrKoder!A$1:A$10)","v":{"$error":"#N/A"}},null," "," "]
[" "," "," "," "," "," ","Alle ",null,{"$f":"LOOKUP(H206,Tværprofilelement!C$3:C$24,Tværprofilelement!A$3:A$24)","v":{"$error":"#N/A"}},null,null,null,null,null,null,null,null,null,null,null,null,null,{"$f":"LOOKUP(V206,EntrKoder!B$1:B$10,EntrKoder!A$1:A$10)","v":{"$error":"#N/A"}},null," "," "]
[" "," "," "," "," "," ","Alle ",null,{"$f":"LOOKUP(H207,Tværprofilelement!C$3:C$24,Tværprofilelement!A$3:A$24)","v":{"$error":"#N/A"}},null,null,null,null,null,null,null,null,null,null,null,null,null,{"$f":"LOOKUP(V207,EntrKoder!B$1:B$10,EntrKoder!A$1:A$10)","v":{"$error":"#N/A"}},null," "," "]
[" "," "," "," "," "," ","Alle ",null,{"$f":"LOOKUP(H208,Tværprofilelement!C$3:C$24,Tværprofilelement!A$3:A$24)","v":{"$error":"#N/A"}},null,null,null,null,null,null,null,null,null,null,null,null,null,{"$f":"LOOKUP(V208,EntrKoder!B$1:B$10,EntrKoder!A$1:A$10)","v":{"$error":"#N/A"}},null," "," "]
[" "," "," "," "," "," ","Alle ",null,{"$f":"LOOKUP(H209,Tværprofilelement!C$3:C$24,Tværprofilelement!A$3:A$24)","v":{"$error":"#N/A"}},null,null,null,null,null,null,null,null,null,null,null,null,null,{"$f":"LOOKUP(V209,EntrKoder!B$1:B$10,EntrKoder!A$1:A$10)","v":{"$error":"#N/A"}},null," "," "]
[" "," "," "," "," "," ","Alle ",null,{"$f":"LOOKUP(H210,Tværprofilelement!C$3:C$24,Tværprofilelement!A$3:A$24)","v":{"$error":"#N/A"}},null,null,null,null,null,null,null,null,null,null,null,null,null,{"$f":"LOOKUP(V210,EntrKoder!B$1:B$10,EntrKoder!A$1:A$10)","v":{"$error":"#N/A"}},null," "," "]
[" "," "," "," "," "," ","Alle ",null,{"$f":"LOOKUP(H211,Tværprofilelement!C$3:C$24,Tværprofilelement!A$3:A$24)","v":{"$error":"#N/A"}},null,null,null,null,null,null,null,null,null,null,null,null,null,{"$f":"LOOKUP(V211,EntrKoder!B$1:B$10,EntrKoder!A$1:A$10)","v":{"$error":"#N/A"}},null," "," "]
[" "," "," "," "," "," ","Alle ",null,{"$f":"LOOKUP(H212,Tværprofilelement!C$3:C$24,Tværprofilelement!A$3:A$24)","v":{"$error":"#N/A"}},null,null,null,null,null,null,null,null,null,null,null,null,null,{"$f":"LOOKUP(V212,EntrKoder!B$1:B$10,EntrKoder!A$1:A$10)","v":{"$error":"#N/A"}},null," "," "]
[" "," "," "," "," "," ","Alle ",null,{"$f":"LOOKUP(H213,Tværprofilelement!C$3:C$24,Tværprofilelement!A$3:A$24)","v":{"$error":"#N/A"}},null,null,null,null,null,null,null,null,null,null,null,null,null,{"$f":"LOOKUP(V213,EntrKoder!B$1:B$10,EntrKoder!A$1:A$10)","v":{"$error":"#N/A"}},null," "," "]
[" "," "," "," "," "," ","Alle ",null,{"$f":"LOOKUP(H214,Tværprofilelement!C$3:C$24,Tværprofilelement!A$3:A$24)","v":{"$error":"#N/A"}},null,null,null,null,null,null,null,null,null,null,null,null,null,{"$f":"LOOKUP(V214,EntrKoder!B$1:B$10,EntrKoder!A$1:A$10)","v":{"$error":"#N/A"}},null," "," "]
[" "," "," "," "," "," ","Alle ",null,{"$f":"LOOKUP(H215,Tværprofilelement!C$3:C$24,Tværprofilelement!A$3:A$24)","v":{"$error":"#N/A"}},null,null,null,null,null,null,null,null,null,null,null,null,null,{"$f":"LOOKUP(V215,EntrKoder!B$1:B$10,EntrKoder!A$1:A$10)","v":{"$error":"#N/A"}},null," "," "]
[" "," "," "," "," "," ","Alle ",null,{"$f":"LOOKUP(H216,Tværprofilelement!C$3:C$24,Tværprofilelement!A$3:A$24)","v":{"$error":"#N/A"}},null,null,null,null,null,null,null,null,null,null,null,null,null,{"$f":"LOOKUP(V216,EntrKoder!B$1:B$10,EntrKoder!A$1:A$10)","v":{"$error":"#N/A"}},null," "," "]
[" "," "," "," "," "," ","Alle ",null,{"$f":"LOOKUP(H217,Tværprofilelement!C$3:C$24,Tværprofilelement!A$3:A$24)","v":{"$error":"#N/A"}},null,null,null,null,null,null,null,null,null,null,null,null,null,{"$f":"LOOKUP(V217,EntrKoder!B$1:B$10,EntrKoder!A$1:A$10)","v":{"$error":"#N/A"}},null," "," "]
[" "," "," "," "," "," ","Alle ",null,{"$f":"LOOKUP(H218,Tværprofilelement!C$3:C$24,Tværprofilelement!A$3:A$24)","v":{"$error":"#N/A"}},null,null,null,null,null,null,null,null,null,null,null,null,null,{"$f":"LOOKUP(V218,EntrKoder!B$1:B$10,EntrKoder!A$1:A$10)","v":{"$error":"#N/A"}},null," "," "]
[" "," "," "," "," "," ","Alle ",null,{"$f":"LOOKUP(H219,Tværprofilelement!C$3:C$24,Tværprofilelement!A$3:A$24)","v":{"$error":"#N/A"}},null,null,null,null,null,null,null,null,null,null,null,null,null,{"$f":"LOOKUP(V219,EntrKoder!B$1:B$10,EntrKoder!A$1:A$10)","v":{"$error":"#N/A"}},null," "," "]
[" "," "," "," "," "," ","Alle ",null,{"$f":"LOOKUP(H220,Tværprofilelement!C$3:C$24,Tværprofilelement!A$3:A$24)","v":{"$error":"#N/A"}},null,null,null,null,null,null,null,null,null,null,null,null,null,{"$f":"LOOKUP(V220,EntrKoder!B$1:B$10,EntrKoder!A$1:A$10)","v":{"$error":"#N/A"}},null," "," "]
[" "," "," "," "," "," ","Alle ",null,{"$f":"LOOKUP(H221,Tværprofilelement!C$3:C$24,Tværprofilelement!A$3:A$24)","v":{"$error":"#N/A"}},null,null,null,null,null,null,null,null,null,null,null,null,null,{"$f":"LOOKUP(V221,EntrKoder!B$1:B$10,EntrKoder!A$1:A$10)","v":{"$error":"#N/A"}},null," "," "]
[" "," "," "," "," "," ","Alle ",null,{"$f":"LOOKUP(H222,Tværprofilelement!C$3:C$24,Tværprofilelement!A$3:A$24)","v":{"$error":"#N/A"}},null,null,null,null,null,null,null,null,null,null,null,null,null,{"$f":"LOOKUP(V222,EntrKoder!B$1:B$10,EntrKoder!A$1:A$10)","v":{"$error":"#N/A"}},null," "," "]
[" "," "," "," "," "," ","Alle ",null,{"$f":"LOOKUP(H223,Tværprofilelement!C$3:C$24,Tværprofilelement!A$3:A$24)","v":{"$error":"#N/A"}},null,null,null,null,null,null,null,null,null,null,null,null,null,{"$f":"LOOKUP(V223,EntrKoder!B$1:B$10,EntrKoder!A$1:A$10)","v":{"$error":"#N/A"}},null," "," "]
[" "," "," "," "," "," ","Alle ",null,{"$f":"LOOKUP(H224,Tværprofilelement!C$3:C$24,Tværprofilelement!A$3:A$24)","v":{"$error":"#N/A"}},null,null,null,null,null,null,null,null,null,null,null,null,null,{"$f":"LOOKUP(V224,EntrKoder!B$1:B$10,EntrKoder!A$1:A$10)","v":{"$error":"#N/A"}},null," "," "]
[" "," "," "," "," "," ","Alle ",null,{"$f":"LOOKUP(H225,Tværprofilelement!C$3:C$24,Tværprofilelement!A$3:A$24)","v":{"$error":"#N/A"}},null,null,null,null,null,null,null,null,null,null,null,null,null,{"$f":"LOOKUP(V225,EntrKoder!B$1:B$10,EntrKoder!A$1:A$10)","v":{"$error":"#N/A"}},null," "," "]
[" "," "," "," "," "," ","Alle ",null,{"$f":"LOOKUP(H226,Tværprofilelement!C$3:C$24,Tværprofilelement!A$3:A$24)","v":{"$error":"#N/A"}},null,null,null,null,null,null,null,null,null,null,null,null,null,{"$f":"LOOKUP(V226,EntrKoder!B$1:B$10,EntrKoder!A$1:A$10)","v":{"$error":"#N/A"}},null," "," "]
[" "," "," "," "," "," ","Alle ",null,{"$f":"LOOKUP(H227,Tværprofilelement!C$3:C$24,Tværprofilelement!A$3:A$24)","v":{"$error":"#N/A"}},null,null,null,null,null,null,null,null,null,null,null,null,null,{"$f":"LOOKUP(V227,EntrKoder!B$1:B$10,EntrKoder!A$1:A$10)","v":{"$error":"#N/A"}},null," "," "]
[" "," "," "," "," "," ","Alle ",null,{"$f":"LOOKUP(H228,Tværprofilelement!C$3:C$24,Tværprofilelement!A$3:A$24)","v":{"$error":"#N/A"}},null,null,null,null,null,null,null,null,null,null,null,null,null,{"$f":"LOOKUP(V228,EntrKoder!B$1:B$10,EntrKoder!A$1:A$10)","v":{"$error":"#N/A"}},null," "," "]
[" "," "," "," "," "," ","Alle ",null,{"$f":"LOOKUP(H229,Tværprofilelement!C$3:C$24,Tværprofilelement!A$3:A$24)","v":{"$error":"#N/A"}},null,null,null,null,null,null,null,null,null,null,null,null,null,{"$f":"LOOKUP(V229,EntrKoder!B$1:B$10,EntrKoder!A$1:A$10)","v":{"$error":"#N/A"}},null," "," "]
[" "," "," "," "," "," ","Alle ",null,{"$f":"LOOKUP(H230,Tværprofilelement!C$3:C$24,Tværprofilelement!A$3:A$24)","v":{"$error":"#N/A"}},null,null,null,null,null,null,null,null,null,null,null,null,null,{"$f":"LOOKUP(V230,EntrKoder!B$1:B$10,EntrKoder!A$1:A$10)","v":{"$error":"#N/A"}},null," "," "]
[" "," "," "," "," "," ","Alle ",null,{"$f":"LOOKUP(H231,Tværprofilelement!C$3:C$24,Tværprofilelement!A$3:A$24)","v":{"$error":"#N/A"}},null,null,null,null,null,null,null,null,null,null,null,null,null,{"$f":"LOOKUP(V231,EntrKoder!B$1:B$10,EntrKoder!A$1:A$10)","v":{"$error":"#N/A"}},null," "," "]
[" "," "," "," "," "," ","Alle ",null,{"$f":"LOOKUP(H232,Tværprofilelement!C$3:C$24,Tværprofilelement!A$3:A$24)","v":{"$error":"#N/A"}},null,null,null,null,null,null,null,null,null,null,null,null,null,{"$f":"LOOKUP(V232,EntrKoder!B$1:B$10,EntrKoder!A$1:A$10)","v":{"$error":"#N/A"}},null," "," "]
[" "," "," "," "," "," ","Alle ",null,{"$f":"LOOKUP(H233,Tværprofilelement!C$3:C$24,Tværprofilelement!A$3:A$24)","v":{"$error":"#N/A"}},null,null,null,null,null,null,null,null,null,null,null,null,null,{"$f":"LOOKUP(V233,EntrKoder!B$1:B$10,EntrKoder!A$1:A$10)","v":{"$error":"#N/A"}},null," "," "]
[" "," "," "," "," "," ","Alle ",null,{"$f":"LOOKUP(H234,Tværprofilelement!C$3:C$24,Tværprofilelement!A$3:A$24)","v":{"$error":"#N/A"}},null,null,null,null,null,null,null,null,null,null,null,null,null,{"$f":"LOOKUP(V234,EntrKoder!B$1:B$10,EntrKoder!A$1:A$10)","v":{"$error":"#N/A"}},null," "," "]
[" "," "," "," "," "," ","Alle ",null,{"$f":"LOOKUP(H235,Tværprofilelement!C$3:C$24,Tværprofilelement!A$3:A$24)","v":{"$error":"#N/A"}},null,null,null,null,null,null,null,null,null,null,null,null,null,{"$f":"LOOKUP(V235,EntrKoder!B$1:B$10,EntrKoder!A$1:A$10)","v":{"$error":"#N/A"}},null," "," "]
[" "," "," "," "," "," ","Alle ",null,{"$f":"LOOKUP(H236,Tværprofilelement!C$3:C$24,Tværprofilelement!A$3:A$24)","v":{"$error":"#N/A"}},null,null,null,null,null,null,null,null,null,null,null,null,null,{"$f":"LOOKUP(V236,EntrKoder!B$1:B$10,EntrKoder!A$1:A$10)","v":{"$error":"#N/A"}},null," "," "]
[" "," "," "," "," "," ","Alle ",null,{"$f":"LOOKUP(H237,Tværprofilelement!C$3:C$24,Tværprofilelement!A$3:A$24)","v":{"$error":"#N/A"}},null,null,null,null,null,null,null,null,null,null,null,null,null,{"$f":"LOOKUP(V237,EntrKoder!B$1:B$10,EntrKoder!A$1:A$10)","v":{"$error":"#N/A"}},null," "," "]
[" "," "," "," "," "," ","Alle ",null,{"$f":"LOOKUP(H238,Tværprofilelement!C$3:C$24,Tværprofilelement!A$3:A$24)","v":{"$error":"#N/A"}},null,null,null,null,null,null,null,null,null,null,null,null,null,{"$f":"LOOKUP(V238,EntrKoder!B$1:B$10,EntrKoder!A$1:A$10)","v":{"$error":"#N/A"}},null," "," "]
[" "," "," "," "," "," ","Alle ",null,{"$f":"LOOKUP(H239,Tværprofilelement!C$3:C$24,Tværprofilelement!A$3:A$24)","v":{"$error":"#N/A"}},null,null,null,null,null,null,null,null,null,null,null,null,null,{"$f":"LOOKUP(V239,EntrKoder!B$1:B$10,EntrKoder!A$1:A$10)","v":{"$error":"#N/A"}},null," "," "]
[" "," "," "," "," "," ","Alle ",null,{"$f":"LOOKUP(H240,Tværprofilelement!C$3:C$24,Tværprofilelement!A$3:A$24)","v":{"$error":"#N/A"}},null,null,null,null,null,null,null,null,null,null,null,null,null,{"$f":"LOOKUP(V240,EntrKoder!B$1:B$10,EntrKoder!A$1:A$10)","v":{"$error":"#N/A"}},null," "," "]
[" "," "," "," "," "," ","Alle ",null,{"$f":"LOOKUP(H241,Tværprofilelement!C$3:C$24,Tværprofilelement!A$3:A$24)","v":{"$error":"#N/A"}},null,null,null,null,null,null,null,null,null,null,null,null,null,{"$f":"LOOKUP(V241,EntrKoder!B$1:B$10,EntrKoder!A$1:A$10)","v":{"$error":"#N/A"}},null," "," "]
[" "," "," "," "," "," ","Alle ",null,{"$f":"LOOKUP(H242,Tværprofilelement!C$3:C$24,Tværprofilelement!A$3:A$24)","v":{"$error":"#N/A"}},null,null,null,null,null,null,null,null,null,null,null,null,null,{"$f":"LOOKUP(V242,EntrKoder!B$1:B$10,EntrKoder!A$1:A$10)","v":{"$error":"#N/A"}},null," "," "]
[" "," "," "," "," "," ","Alle ",null,{"$f":"LOOKUP(H243,Tværprofilelement!C$3:C$24,Tværprofilelement!A$3:A$24)","v":{"$error":"#N/A"}},null,null,null,null,null,null,null,null,null,null,null,null,null,{"$f":"LOOKUP(V243,EntrKoder!B$1:B$10,EntrKoder!A$1:A$10)","v":{"$error":"#N/A"}},null," "," "]
[" "," "," "," "," "," ","Alle ",null,{"$f":"LOOKUP(H244,Tværprofilelement!C$3:C$24,Tværprofilelement!A$3:A$24)","v":{"$error":"#N/A"}},null,null,null,null,null,null,null,null,null,null,null,null,null,{"$f":"LOOKUP(V244,EntrKoder!B$1:B$10,EntrKoder!A$1:A$10)","v":{"$error":"#N/A"}},null," "," "]
[" "," "," "," "," "," ","Alle ",null,{"$f":"LOOKUP(H245,Tværprofilelement!C$3:C$24,Tværprofilelement!A$3:A$24)","v":{"$error":"#N/A"}},null,null,null,null,null,null,null,null,null,null,null,null,null,{"$f":"LOOKUP(V245,EntrKoder!B$1:B$10,EntrKoder!A$1:A$10)","v":{"$error":"#N/A"}},null," "," "]
[" "," "," "," "," "," ","Alle ",null,{"$f":"LOOKUP(H246,Tværprofilelement!C$3:C$24,Tværprofilelement!A$3:A$24)","v":{"$error":"#N/A"}},null,null,null,null,null,null,null,null,null,null,null,null,null,{"$f":"LOOKUP(V246,EntrKoder!B$1:B$10,EntrKoder!A$1:A$10)","v":{"$error":"#N/A"}},null," "," "]
[" "," "," "," "," "," ","Alle ",null,{"$f":"LOOKUP(H247,Tværprofilelement!C$3:C$24,Tværprofilelement!A$3:A$24)","v":{"$error":"#N/A"}},null,null,null,null,null,null,null,null,null,null,null,null,null,{"$f":"LOOKUP(V247,EntrKoder!B$1:B$10,EntrKoder!A$1:A$10)","v":{"$error":"#N/A"}},null," "," "]
[" "," "," "," "," "," ","Alle ",null,{"$f":"LOOKUP(H248,Tværprofilelement!C$3:C$24,Tværprofilelement!A$3:A$24)","v":{"$error":"#N/A"}},null,null,null,null,null,null,null,null,null,null,null,null,null,{"$f":"LOOKUP(V248,EntrKoder!B$1:B$10,EntrKoder!A$1:A$10)","v":{"$error":"#N/A"}},null," "," "]
[" "," "," "," "," "," ","Alle ",null,{"$f":"LOOKUP(H249,Tværprofilelement!C$3:C$24,Tværprofilelement!A$3:A$24)","v":{"$error":"#N/A"}},null,null,null,null,null,null,null,null,null,null,null,null,null,{"$f":"LOOKUP(V249,EntrKoder!B$1:B$10,EntrKoder!A$1:A$10)","v":{"$error":"#N/A"}},null," "," "]
[" "," "," "," "," "," ","Alle ",null,{"$f":"LOOKUP(H250,Tværprofilelement!C$3:C$24,Tværprofilelement!A$3:A$24)","v":{"$error":"#N/A"}},null,null,null,null,null,null,null,null,null,null,null,null,null,{"$f":"LOOKUP(V250,EntrKoder!B$1:B$10,EntrKoder!A$1:A$10)","v":{"$error":"#N/A"}},null," "," "]
[" "," "," "," "," "," ","Alle ",null,{"$f":"LOOKUP(H251,Tværprofilelement!C$3:C$24,Tværprofilelement!A$3:A$24)","v":{"$error":"#N/A"}},null,null,null,null,null,null,null,null,null,null,null,null,null,{"$f":"LOOKUP(V251,EntrKoder!B$1:B$10,EntrKoder!A$1:A$10)","v":{"$error":"#N/A"}},null," "," "]
[" "," "," "," "," "," ","Alle ",null,{"$f":"LOOKUP(H252,Tværprofilelement!C$3:C$24,Tværprofilelement!A$3:A$24)","v":{"$error":"#N/A"}},null,null,null,null,null,null,null,null,null,null,null,null,null,{"$f":"LOOKUP(V252,EntrKoder!B$1:B$10,EntrKoder!A$1:A$10)","v":{"$error":"#N/A"}},null," "," "]
[" "," "," "," "," "," ","Alle ",null,{"$f":"LOOKUP(H253,Tværprofilelement!C$3:C$24,Tværprofilelement!A$3:A$24)","v":{"$error":"#N/A"}},null,null,null,null,null,null,null,null,null,null,null,null,null,{"$f":"LOOKUP(V253,EntrKoder!B$1:B$10,EntrKoder!A$1:A$10)","v":{"$error":"#N/A"}},null," "," "]
[" "," "," "," "," "," ","Alle ",null,{"$f":"LOOKUP(H254,Tværprofilelement!C$3:C$24,Tværprofilelement!A$3:A$24)","v":{"$error":"#N/A"}},null,null,null,null,null,null,null,null,null,null,null,null,null,{"$f":"LOOKUP(V254,EntrKoder!B$1:B$10,EntrKoder!A$1:A$10)","v":{"$error":"#N/A"}},null," "," "]
[" "," "," "," "," "," ","Alle ",null,{"$f":"LOOKUP(H255,Tværprofilelement!C$3:C$24,Tværprofilelement!A$3:A$24)","v":{"$error":"#N/A"}},null,null,null,null,null,null,null,null,null,null,null,null,null,{"$f":"LOOKUP(V255,EntrKoder!B$1:B$10,EntrKoder!A$1:A$10)","v":{"$error":"#N/A"}},null," "," "]
[" "," "," "," "," "," ","Alle ",null,{"$f":"LOOKUP(H256,Tværprofilelement!C$3:C$24,Tværprofilelement!A$3:A$24)","v":{"$error":"#N/A"}},null,null,null,null,null,null,null,null,null,null,null,null,null,{"$f":"LOOKUP(V256,EntrKoder!B$1:B$10,EntrKoder!A$1:A$10)","v":{"$error":"#N/A"}},null," "," "]
[" "," "," "," "," "," ","Alle ",null,{"$f":"LOOKUP(H257,Tværprofilelement!C$3:C$24,Tværprofilelement!A$3:A$24)","v":{"$error":"#N/A"}},null,null,null,null,null,null,null,null,null,null,null,null,null,{"$f":"LOOKUP(V257,EntrKoder!B$1:B$10,EntrKoder!A$1:A$10)","v":{"$error":"#N/A"}},null," "," "]
[" "," "," "," "," "," ","Alle ",null,{"$f":"LOOKUP(H258,Tværprofilelement!C$3:C$24,Tværprofilelement!A$3:A$24)","v":{"$error":"#N/A"}},null,null,null,null,null,null,null,null,null,null,null,null,null,{"$f":"LOOKUP(V258,EntrKoder!B$1:B$10,EntrKoder!A$1:A$10)","v":{"$error":"#N/A"}},null," "," "]
[" "," "," "," "," "," ","Alle ",null,{"$f":"LOOKUP(H259,Tværprofilelement!C$3:C$24,Tværprofilelement!A$3:A$24)","v":{"$error":"#N/A"}},null,null,null,null,null,null,null,null,null,null,null,null,null,{"$f":"LOOKUP(V259,EntrKoder!B$1:B$10,EntrKoder!A$1:A$10)","v":{"$error":"#N/A"}},null," "," "]
[" "," "," "," "," "," ","Alle ",null,{"$f":"LOOKUP(H260,Tværprofilelement!C$3:C$24,Tværprofilelement!A$3:A$24)","v":{"$error":"#N/A"}},null,null,null,null,null,null,null,null,null,null,null,null,null,{"$f":"LOOKUP(V260,EntrKoder!B$1:B$10,EntrKoder!A$1:A$10)","v":{"$error":"#N/A"}},null," "," "]
[" "," "," "," "," "," ","Alle ",null,{"$f":"LOOKUP(H261,Tværprofilelement!C$3:C$24,Tværprofilelement!A$3:A$24)","v":{"$error":"#N/A"}},null,null,null,null,null,null,null,null,null,null,null,null,null,{"$f":"LOOKUP(V261,EntrKoder!B$1:B$10,EntrKoder!A$1:A$10)","v":{"$error":"#N/A"}},null," "," "]
[" "," "," "," "," "," ","Alle ",null,{"$f":"LOOKUP(H262,Tværprofilelement!C$3:C$24,Tværprofilelement!A$3:A$24)","v":{"$error":"#N/A"}},null,null,null,null,null,null,null,null,null,null,null,null,null,{"$f":"LOOKUP(V262,EntrKoder!B$1:B$10,EntrKoder!A$1:A$10)","v":{"$error":"#N/A"}},null," "," "]
[" "," "," "," "," "," ","Alle ",null,{"$f":"LOOKUP(H263,Tværprofilelement!C$3:C$24,Tværprofilelement!A$3:A$24)","v":{"$error":"#N/A"}},null,null,null,null,null,null,null,null,null,null,null,null,null,{"$f":"LOOKUP(V263,EntrKoder!B$1:B$10,EntrKoder!A$1:A$10)","v":{"$error":"#N/A"}},null," "," "]
[" "," "," "," "," "," ","Alle ",null,{"$f":"LOOKUP(H264,Tværprofilelement!C$3:C$24,Tværprofilelement!A$3:A$24)","v":{"$error":"#N/A"}},null,null,null,null,null,null,null,null,null,null,null,null,null,{"$f":"LOOKUP(V264,EntrKoder!B$1:B$10,EntrKoder!A$1:A$10)","v":{"$error":"#N/A"}},null," "," "]
[" "," "," "," "," "," ","Alle ",null,{"$f":"LOOKUP(H265,Tværprofilelement!C$3:C$24,Tværprofilelement!A$3:A$24)","v":{"$error":"#N/A"}},null,null,null,null,null,null,null,null,null,null,null,null,null,{"$f":"LOOKUP(V265,EntrKoder!B$1:B$10,EntrKoder!A$1:A$10)","v":{"$error":"#N/A"}},null," "," "]
[" "," "," "," "," "," ","Alle ",null,{"$f":"LOOKUP(H266,Tværprofilelement!C$3:C$24,Tværprofilelement!A$3:A$24)","v":{"$error":"#N/A"}},null,null,null,null,null,null,null,null,null,null,null,null,null,{"$f":"LOOKUP(V266,EntrKoder!B$1:B$10,EntrKoder!A$1:A$10)","v":{"$error":"#N/A"}},null," "," "]
[" "," "," "," "," "," ","Alle ",null,{"$f":"LOOKUP(H267,Tværprofilelement!C$3:C$24,Tværprofilelement!A$3:A$24)","v":{"$error":"#N/A"}},null,null,null,null,null,null,null,null,null,null,null,null,null,{"$f":"LOOKUP(V267,EntrKoder!B$1:B$10,EntrKoder!A$1:A$10)","v":{"$error":"#N/A"}},null," "," "]
[" "," "," "," "," "," ","Alle ",null,{"$f":"LOOKUP(H268,Tværprofilelement!C$3:C$24,Tværprofilelement!A$3:A$24)","v":{"$error":"#N/A"}},null,null,null,null,null,null,null,null,null,null,null,null,null,{"$f":"LOOKUP(V268,EntrKoder!B$1:B$10,EntrKoder!A$1:A$10)","v":{"$error":"#N/A"}},null," "," "]
[" "," "," "," "," "," ","Alle ",null,{"$f":"LOOKUP(H269,Tværprofilelement!C$3:C$24,Tværprofilelement!A$3:A$24)","v":{"$error":"#N/A"}},null,null,null,null,null,null,null,null,null,null,null,null,null,{"$f":"LOOKUP(V269,EntrKoder!B$1:B$10,EntrKoder!A$1:A$10)","v":{"$error":"#N/A"}},null," "," "]
[" "," "," "," "," "," ","Alle ",null,{"$f":"LOOKUP(H270,Tværprofilelement!C$3:C$24,Tværprofilelement!A$3:A$24)","v":{"$error":"#N/A"}},null,null,null,null,null,null,null,null,null,null,null,null,null,{"$f":"LOOKUP(V270,EntrKoder!B$1:B$10,EntrKoder!A$1:A$10)","v":{"$error":"#N/A"}},null," "," "]
[" "," "," "," "," "," ","Alle ",null,{"$f":"LOOKUP(H271,Tværprofilelement!C$3:C$24,Tværprofilelement!A$3:A$24)","v":{"$error":"#N/A"}},null,null,null,null,null,null,null,null,null,null,null,null,null,{"$f":"LOOKUP(V271,EntrKoder!B$1:B$10,EntrKoder!A$1:A$10)","v":{"$error":"#N/A"}},null," "," "]
[" "," "," "," "," "," ","Alle ",null,{"$f":"LOOKUP(H272,Tværprofilelement!C$3:C$24,Tværprofilelement!A$3:A$24)","v":{"$error":"#N/A"}},null,null,null,null,null,null,null,null,null,null,null,null,null,{"$f":"LOOKUP(V272,EntrKoder!B$1:B$10,EntrKoder!A$1:A$10)","v":{"$error":"#N/A"}},null," "," "]
[" "," "," "," "," "," ","Alle ",null,{"$f":"LOOKUP(H273,Tværprofilelement!C$3:C$24,Tværprofilelement!A$3:A$24)","v":{"$error":"#N/A"}},null,null,null,null,null,null,null,null,null,null,null,null,null,{"$f":"LOOKUP(V273,EntrKoder!B$1:B$10,EntrKoder!A$1:A$10)","v":{"$error":"#N/A"}},null," "," "]
[" "," "," "," "," "," ","Alle ",null,{"$f":"LOOKUP(H274,Tværprofilelement!C$3:C$24,Tværprofilelement!A$3:A$24)","v":{"$error":"#N/A"}},null,null,null,null,null,null,null,null,null,null,null,null,null,{"$f":"LOOKUP(V274,EntrKoder!B$1:B$10,EntrKoder!A$1:A$10)","v":{"$error":"#N/A"}},null," "," "]
[" "," "," "," "," "," ","Alle ",null,{"$f":"LOOKUP(H275,Tværprofilelement!C$3:C$24,Tværprofilelement!A$3:A$24)","v":{"$error":"#N/A"}},null,null,null,null,null,null,null,null,null,null,null,null,null,{"$f":"LOOKUP(V275,EntrKoder!B$1:B$10,EntrKoder!A$1:A$10)","v":{"$error":"#N/A"}},null," "," "]
[" "," "," "," "," "," ","Alle ",null,{"$f":"LOOKUP(H276,Tværprofilelement!C$3:C$24,Tværprofilelement!A$3:A$24)","v":{"$error":"#N/A"}},null,null,null,null,null,null,null,null,null,null,null,null,null,{"$f":"LOOKUP(V276,EntrKoder!B$1:B$10,EntrKoder!A$1:A$10)","v":{"$error":"#N/A"}},null," "," "]
[" "," "," "," "," "," ","Alle ",null,{"$f":"LOOKUP(H277,Tværprofilelement!C$3:C$24,Tværprofilelement!A$3:A$24)","v":{"$error":"#N/A"}},null,null,null,null,null,null,null,null,null,null,null,null,null,{"$f":"LOOKUP(V277,EntrKoder!B$1:B$10,EntrKoder!A$1:A$10)","v":{"$error":"#N/A"}},null," "," "]
[" "," "," "," "," "," ","Alle ",null,{"$f":"LOOKUP(H278,Tværprofilelement!C$3:C$24,Tværprofilelement!A$3:A$24)","v":{"$error":"#N/A"}},null,null,null,null,null,null,null,null,null,null,null,null,null,{"$f":"LOOKUP(V278,EntrKoder!B$1:B$10,EntrKoder!A$1:A$10)","v":{"$error":"#N/A"}},null," "," "]
[" "," "," "," "," "," ","Alle ",null,{"$f":"LOOKUP(H279,Tværprofilelement!C$3:C$24,Tværprofilelement!A$3:A$24)","v":{"$error":"#N/A"}},null,null,null,null,null,null,null,null,null,null,null,null,null,{"$f":"LOOKUP(V279,EntrKoder!B$1:B$10,EntrKoder!A$1:A$10)","v":{"$error":"#N/A"}},null," "," "]
[" "," "," "," "," "," ","Alle ",null,{"$f":"LOOKUP(H280,Tværprofilelement!C$3:C$24,Tværprofilelement!A$3:A$24)","v":{"$error":"#N/A"}},null,null,null,null,null,null,null,null,null,null,null,null,null,{"$f":"LOOKUP(V280,EntrKoder!B$1:B$10,EntrKoder!A$1:A$10)","v":{"$error":"#N/A"}},null," "," "]
[" "," "," "," "," "," ","Alle ",null,{"$f":"LOOKUP(H281,Tværprofilelement!C$3:C$24,Tværprofilelement!A$3:A$24)","v":{"$error":"#N/A"}},null,null,null,null,null,null,null,null,null,null,null,null,null,{"$f":"LOOKUP(V281,EntrKoder!B$1:B$10,EntrKoder!A$1:A$10)","v":{"$error":"#N/A"}},null," "," "]
[" "," "," "," "," "," ","Alle ",null,{"$f":"LOOKUP(H282,Tværprofilelement!C$3:C$24,Tværprofilelement!A$3:A$24)","v":{"$error":"#N/A"}},null,null,null,null,null,null,null,null,null,null,null,null,null,{"$f":"LOOKUP(V282,EntrKoder!B$1:B$10,EntrKoder!A$1:A$10)","v":{"$error":"#N/A"}},null," "," "]
[" "," "," "," "," "," ","Alle ",null,{"$f":"LOOKUP(H283,Tværprofilelement!C$3:C$24,Tværprofilelement!A$3:A$24)","v":{"$error":"#N/A"}},null,null,null,null,null,null,null,null,null,null,null,null,null,{"$f":"LOOKUP(V283,EntrKoder!B$1:B$10,EntrKoder!A$1:A$10)","v":{"$error":"#N/A"}},null," "," "]
[" "," "," "," "," "," ","Alle ",null,{"$f":"LOOKUP(H284,Tværprofilelement!C$3:C$24,Tværprofilelement!A$3:A$24)","v":{"$error":"#N/A"}},null,null,null,null,null,null,null,null,null,null,null,null,null,{"$f":"LOOKUP(V284,EntrKoder!B$1:B$10,EntrKoder!A$1:A$10)","v":{"$error":"#N/A"}},null," "," "]
[" "," "," "," "," "," ","Alle ",null,{"$f":"LOOKUP(H285,Tværprofilelement!C$3:C$24,Tværprofilelement!A$3:A$24)","v":{"$error":"#N/A"}},null,null,null,null,null,null,null,null,null,null,null,null,null,{"$f":"LOOKUP(V285,EntrKoder!B$1:B$10,EntrKoder!A$1:A$10)","v":{"$error":"#N/A"}},null," "," "]
[" "," "," "," "," "," ","Alle ",null,{"$f":"LOOKUP(H286,Tværprofilelement!C$3:C$24,Tværprofilelement!A$3:A$24)","v":{"$error":"#N/A"}},null,null,null,null,null,null,null,null,null,null,null,null,null,{"$f":"LOOKUP(V286,EntrKoder!B$1:B$10,EntrKoder!A$1:A$10)","v":{"$error":"#N/A"}},null," "," "]
[" "," "," "," "," "," ","Alle ",null,{"$f":"LOOKUP(H287,Tværprofilelement!C$3:C$24,Tværprofilelement!A$3:A$24)","v":{"$error":"#N/A"}},null,null,null,null,null,null,null,null,null,null,null,null,null,{"$f":"LOOKUP(V287,EntrKoder!B$1:B$10,EntrKoder!A$1:A$10)","v":{"$error":"#N/A"}},null," "," "]
[" "," "," "," "," "," ","Alle ",null,{"$f":"LOOKUP(H288,Tværprofilelement!C$3:C$24,Tværprofilelement!A$3:A$24)","v":{"$error":"#N/A"}},null,null,null,null,null,null,null,null,null,null,null,null,null,{"$f":"LOOKUP(V288,EntrKoder!B$1:B$10,EntrKoder!A$1:A$10)","v":{"$error":"#N/A"}},null," "," "]
[" "," "," "," "," "," ","Alle ",null,{"$f":"LOOKUP(H289,Tværprofilelement!C$3:C$24,Tværprofilelement!A$3:A$24)","v":{"$error":"#N/A"}},null,null,null,null,null,null,null,null,null,null,null,null,null,{"$f":"LOOKUP(V289,EntrKoder!B$1:B$10,EntrKoder!A$1:A$10)","v":{"$error":"#N/A"}},null," "," "]
[" "," "," "," "," "," ","Alle ",null,{"$f":"LOOKUP(H290,Tværprofilelement!C$3:C$24,Tværprofilelement!A$3:A$24)","v":{"$error":"#N/A"}},null,null,null,null,null,null,null,null,null,null,null,null,null,{"$f":"LOOKUP(V290,EntrKoder!B$1:B$10,EntrKoder!A$1:A$10)","v":{"$error":"#N/A"}},null," "," "]
[" "," "," "," "," "," ","Alle ",null,{"$f":"LOOKUP(H291,Tværprofilelement!C$3:C$24,Tværprofilelement!A$3:A$24)","v":{"$error":"#N/A"}},null,null,null,null,null,null,null,null,null,null,null,null,null,{"$f":"LOOKUP(V291,EntrKoder!B$1:B$10,EntrKoder!A$1:A$10)","v":{"$error":"#N/A"}},null," "," "]
[" "," "," "," "," "," ","Alle ",null,{"$f":"LOOKUP(H292,Tværprofilelement!C$3:C$24,Tværprofilelement!A$3:A$24)","v":{"$error":"#N/A"}},null,null,null,null,null,null,null,null,null,null,null,null,null,{"$f":"LOOKUP(V292,EntrKoder!B$1:B$10,EntrKoder!A$1:A$10)","v":{"$error":"#N/A"}},null," "," "]
[" "," "," "," "," "," ","Alle ",null,{"$f":"LOOKUP(H293,Tværprofilelement!C$3:C$24,Tværprofilelement!A$3:A$24)","v":{"$error":"#N/A"}},null,null,null,null,null,null,null,null,null,null,null,null,null,{"$f":"LOOKUP(V293,EntrKoder!B$1:B$10,EntrKoder!A$1:A$10)","v":{"$error":"#N/A"}},null," "," "]
[" "," "," "," "," "," ","Alle ",null,{"$f":"LOOKUP(H294,Tværprofilelement!C$3:C$24,Tværprofilelement!A$3:A$24)","v":{"$error":"#N/A"}},null,null,null,null,null,null,null,null,null,null,null,null,null,{"$f":"LOOKUP(V294,EntrKoder!B$1:B$10,EntrKoder!A$1:A$10)","v":{"$error":"#N/A"}},null," "," "]
[" "," "," "," "," "," ","Alle ",null,{"$f":"LOOKUP(H295,Tværprofilelement!C$3:C$24,Tværprofilelement!A$3:A$24)","v":{"$error":"#N/A"}},null,null,null,null,null,null,null,null,null,null,null,null,null,{"$f":"LOOKUP(V295,EntrKoder!B$1:B$10,EntrKoder!A$1:A$10)","v":{"$error":"#N/A"}},null," "," "]
[" "," "," "," "," "," ","Alle ",null,{"$f":"LOOKUP(H296,Tværprofilelement!C$3:C$24,Tværprofilelement!A$3:A$24)","v":{"$error":"#N/A"}},null,null,null,null,null,null,null,null,null,null,null,null,null,{"$f":"LOOKUP(V296,EntrKoder!B$1:B$10,EntrKoder!A$1:A$10)","v":{"$error":"#N/A"}},null," "," "]
[" "," "," "," "," "," ","Alle ",null,{"$f":"LOOKUP(H297,Tværprofilelement!C$3:C$24,Tværprofilelement!A$3:A$24)","v":{"$error":"#N/A"}},null,null,null,null,null,null,null,null,null,null,null,null,null,{"$f":"LOOKUP(V297,EntrKoder!B$1:B$10,EntrKoder!A$1:A$10)","v":{"$error":"#N/A"}},null," "," "]
[" "," "," "," "," "," ","Alle ",null,{"$f":"LOOKUP(H298,Tværprofilelement!C$3:C$24,Tværprofilelement!A$3:A$24)","v":{"$error":"#N/A"}},null,null,null,null,null,null,null,null,null,null,null,null,null,{"$f":"LOOKUP(V298,EntrKoder!B$1:B$10,EntrKoder!A$1:A$10)","v":{"$error":"#N/A"}},null," "," "]
[" "," "," "," "," "," ","Alle ",null,{"$f":"LOOKUP(H299,Tværprofilelement!C$3:C$24,Tværprofilelement!A$3:A$24)","v":{"$error":"#N/A"}},null,null,null,null,null,null,null,null,null,null,null,null,null,{"$f":"LOOKUP(V299,EntrKoder!B$1:B$10,EntrKoder!A$1:A$10)","v":{"$error":"#N/A"}},null," "," "]

{"sheet":"Type","index":2,"n_rows":118,"n_cols":5,"rows_kept":118,"cut":false,"hidden":false,"merged":[[0,0,0,4]]}
["Opdateret 2024-08-01 (tp3)"]
["Id","Kode","Tekst","Beskrivelse","Vgtf"]
[1,"AA","Andet afretningslag","Andet afretningslag",2.25]
[2,"AB","Asfaltbeton","Asfaltbeton",2.35]
[3,"ABB","Asfaltbeton binderlag","Asfaltbeton binderlag",2.25]
[7,"ABS","Asfaltbeton med nedtr. skærver","Asfaltbeton med nedtromlede skærver",2.35]
[8,"ABST","Asfaltbeton med stålslagger","Asfaltbeton med stålslagger",2.35]
[9,"ABU","Asfaltbundlag","Asfaltbundlag",2.25]
[114,"ABÅ","Asfaltbeton åben","Asfaltbeton åben",2.35]
[12,"ACB","Andet cementbundet bærelag","Andet cementbundet bærelag",0]
[86,"AFF","Affaset kantsten","Affaset kantsten",0]
[13,"AFFR","Affræsning","Affræsning",2.25]
[14,"AS","Andet slidlag","Andet slidlag",2.35]
[15,"ASB","Andet stab. bundsikringslag","Andet stabiliseret bundsikringslag",0]
[134,"ASF","Asfalt","Asfalt",2.35]
[16,"ASU","Andet stabiliseret underbund","Andet stabiliseret underbund",0]
[17,"AUB","Andet ubundet bærelag","Andet ubundet bærelag",0]
[18,"AUS","Andet ubundet bundsikringslag","Andet ubundet bundsikringslag",0]
[87,"BELS","Belægningssten","Belægningssten",0]
[88,"BEPL","Beplantning","Beplantning",0]
[101,"BET","Beton","Beton",0]
[19,"BG","Bundsikringsgrus","Bundsikringsgrus",0]
[20,"BL1","Bundsikringslag 1","Bundsikringslag 1",0]
[21,"BL2","Bundsikringslag 2","Bundsikringslag 2",0]
[22,"BR","Brolægning","Brolægning",2.35]
[23,"BS","Bundsten","Bundsten",0]
[24,"BSB","Bitumenstab. bundsikringslag","Bitumenstabiliseret bundsikringslag",0]
[25,"BSG","Bitumenstab. sand og grus","Bitumenstabiliseret sand og grus",2.25]
[137,"BSMI","Bitumen stabil. mat. in-situ","Bitumen stabiliseret materiale in-situ",2]
[138,"BSMK","Bitumen stabil. mat. KMA","Bitumen stabiliseret materiale Kold Mix Anlæg",2]
[26,"CB","Cementbeton","Cementbeton",0]
[27,"CG","Cementbundet grus","Cementbundet grus",0]
[89,"CHA","Chaussesten","Chaussesten",0]
[121,"CHAA","Chaussesten med asfalt","Chaussesten med asfalt",0]
[28,"CS","Cementbundet sand","Cementbundet sand",0]
[29,"CSB","Cementstab. bundsikringslag","Cementstabiliseret bundsikringslag",0]
[30,"CSU","Cementstabiliseret underbund","Cementstabiliseret underbund",0]
[31,"DA","Drænasfalt","Drænasfalt",2.35]
[56,"EMOB","Mod. overfladebeh. m. Emusion","Modificeret overfladebehandling med Emusion",2.35]
[32,"EMUL","Emulsionsforsegling","Emulsionsforsegling",0]
[33,"FL","Fliser","Fliser",0]
[90,"FLA","Fliser med asfalt","Fliser med asfalt",0]
[118,"FLB","Fliser med betonsten","Fliser med betonsten",0]
[128,"FLBR","Fliser med brosten","Fliser med brosten",0]
[91,"FLC","Fliser m. ch. sten","Fliser med chaussesten",0]
[119,"FLCA","Fliser m. ch. sten og asfalt","Fliser med chaussesten og asfalt",0]
[34,"FSB","Flyveaskestab. bundsikring","Flyveaskestabiliseret bundsikring",0]
[35,"FSU","Flyveaskestab. underbund","Flyveaskestabiliseret underbund",0]
[36,"GAB","Grusasfaltbeton","Grusasfaltbeton",2.25]
[37,"GABS","Grusasfaltbeton, type S","Grusasfaltbeton, type S",2.25]
[38,"GAB0","Grusasfaltbeton type 0","Grusasfaltbeton type 0",2.25]
[39,"GAB1","Grusasfaltbeton type I","Grusasfaltbeton type I",2.25]
[40,"GAB2","Grusasfaltbeton type II","Grusasfaltbeton type II",2.25]
[41,"GAB3","Grusasfaltbeton type III","Grusasfaltbeton type III",2.25]
[45,"GEFA","Genbrug på fabrik","Genbrug på fabrik",2.35]
[46,"GEMA","Genbrug ved marini-metoden","Genbrug ved marini-metoden",2.35]
[126,"GFLC","Granit fliser granit ch. sten","Granit fliser med granit chaussesten",0]
[92,"GRA","Granit","Granit",0]
[123,"GRAR","Græsarmeringssten","Græsarmeringssten",0]
[93,"GRUS","Grus","Grus",0]
[94,"GRÆS","Græs","Græs",0]
[95,"JORD","Jord","Jord",0]
[51,"KA","Kold asfalt","Kold asfalt",2.35]
[49,"KANT","Kantforstærkning","Kantforstærkning",0]
[102,"KB","Kombilag","Kombilag (bærelag med slidlagsegenskaber)",2.25]
[50,"KCB","Knust cement beton","Knust cement beton",0]
[104,"KL","Klinker","Klinker",0]
[52,"KSU","Kalkstabiliseret underbund","Kalkstabiliseret underbund",0]
[136,"KVS","Klimavenlig slidlag SMA8","Klimavenlig slidlag SMA8",2.35]
[53,"MA","Maskinafretning","Maskinafretning",2.25]
[54,"MB","Maribobelægning","Maribobelægning",0]
[55,"MOB","Mod. overfladebehandling","Modificeret overfladebehandling",2.35]
[59,"OB","Overfladebehandling","Overfladebehandling",2.35]
[63,"PA","Pulverasfalt","Pulverasfalt",2.35]
[66,"PAST","Pulverasfalt med stålslagger","Pulverasfalt med stålslagger",2.35]
[122,"PAÅ","Pulverasfalt åben","Pulverasfalt åben",2.35]
[125,"PIG","Pigsten","Pigsten",0]
[47,"RM","Genbrug ved remixing","Genbrug ved remixing",2.35]
[96,"RM+","Remix plus","Remix plus",0]
[68,"SA","Støbeasfalt","Støbeasfalt",2.35]
[69,"SAAB","Sandasfaltbeton","Sandasfaltbeton",2.25]
[103,true,true,true,0]
[97,"SF","SF-sten","SF-sten",0]
[117,"SFB","Semifleksibel belægning","En åben asfalt, hvor hulrummene efter afkøling fyldes ud med betonslam. I vejreglerne bliver de omtalt som: SFB (semifleksibel belægning).",0]
[70,"SG1","Stabilt grus I","Stabilt grus I",0]
[71,"SG2","Stabilt grus II","Stabilt grus II",0]
[72,"SIDE","Sideudvidelse","Sideudvidelse",0]
[73,"SIM","Singelsmacadam","Singelsmacadam",0]
[74,"SKM","Skærvemacadam","Skærvemacadam",0]
[75,"SL","Slagge","Slagge",0]
[76,"SLUR","Overfladebeh. SLURRY SEAL","Overfladebehandling SLURRY SEAL",2.35]
[77,"SMA","Skærvemastix","Skærvemastix",2.35]
[127,"SMST","Skærvemastix med stålslagger","Skærvemastix med stålslagger",0]
[115,"SOB","Sandwich overfladebehandling","Sandwich overfladebehandling",2.35]
[129,"STM","Stenmel","Stenmel",1.8]
[116,"SVIK","Svingkantsten","Svingkantsten",0]
[79,"TBk","Tyndlagsbelægning, fx Pangrib","Tyndlagsbelægning, f.eks. Pangrib",2.35]
[81,"TF","Toplagsfyldning","Toplagsfyldning",2.25]
[135,"TRÆ","Træ","Træ - fx på en bro",0]
[82,"TSB","Tjærestab. bundsikringslag","Tjærestabiliseret bundsikringslag",0]
[83,"TSG","Tjærestabiliseret sand og grus","Tjærestabiliseret sand og grus",2.25]
[105,"T1","Cha-cha-fli-cha-fli-pa","Cha-cha-fli-cha-fli-pa",0]
[113,"T10","Pa-cha-cha-cha-fli-pa","Pa-cha-cha-cha-fli-pa",0]
[130,"T11","Cha-fli-cha-fli-cha-fli","Cha-fli-cha-fli-cha-fli",0]
[131,"T12","Pa-kli","Pa-kli",0]
[106,"T2","Cha-cha-fli-cha-fli-gru","Cha-cha-fli-cha-fli-grus",0]
[107,"T3","Cha-fli-cha-fli-pa","Cha-fli-cha-fli-pa",0]
[108,"T4","Cha-fli-cha-fli-gru","Cha-fli-cha-fli-gru",0]
[109,"T5","Pa-fli-cha-fli-pa","Pa-fli-cha-fli-pa",0]
[110,"T6","pa-fli-cha-fli-gru","pa-fli-cha-fli-gru",0]
[111,"T7","Cha-fli-pa/gru","Cha-fli-pa/gru",0]
[112,"T8","Pa-fli-pa/gru","Pa-fli-pa/gru",0]
[84,"UAFD","Uafdækket bærelag","Uafdækket bærelag",0]
[98,"UKEN","Ukendt belægning","Ukendt belægning",0]
[85,"WM","Wet-mix","Wet-mix",2.25]
[60,"1½OB","Halvanden overfladebehandling","Halvanden overfladebehandling",2.35]
[62,"2½OB","Toenhalv overfladebehandling","Toenhalv overfladebehandling",2.35]
[61,"2OB","Dobbelt overfladebehandling","Dobbelt overfladebehandling",2.35]

{"sheet":"Tværprofilelement","index":3,"n_rows":27,"n_cols":3,"rows_kept":27,"cut":false,"hidden":false,"merged":[]}
["Opdateret 2024-10-01 (tp3)"]
["Kode",null,"Tekst"]
[501,null,"Alle spor inkl. kantbaner"]
[62,null,"Cykelsti"]
[61,null,"Fortov"]
[5,null,"Højre spor"]
[10,null,"Højre svingspor 1"]
[11,null,"Højre svingspor 2"]
[12,null,"Højre svingspor 3"]
[4,null,"Kørebane"]
[57,null,"Mellembane"]
[7,null,"Midt højre spor"]
[8,null,"Midt venstre spor"]
[1,null,"Midterrabat"]
[6,null,"Midterspor"]
[58,null,"Midtkantbane"]
[2,null,"Nødrabat"]
[3,null,"Nødspor"]
[63,null,"Sti"]
[9,null,"Venstre spor"]
[13,null,"Venstre svingspor 1"]
[14,null,"Venstre svingspor 2"]
[15,null,"Venstre svingspor 3"]
[56,null,"Yderkantbane"]
[]
["Alle spor incl. Kantbane vælges :"]
["Når det er hele vejsiden excl. Nødrabat og Nødspor"]

{"sheet":"Spor","index":4,"n_rows":90,"n_cols":25,"rows_kept":90,"cut":false,"hidden":false,"merged":[[70,2,70,10],[70,13,70,23],[1,2,1,24],[8,3,8,24],[44,2,44,24],[50,5,50,9],[50,15,50,21]]}
[]
[null,null,"Benævnelser af spor"]
[]
[]
[null,null,null,"Vejsiden identificeres i kilometreringsretningen som højre (H) og venstre (V)"]
[]
[null,null,null,"Vognbane er i kørselsretningen (Højre vognbane er altid \"det tunge/langsomme\" spor)"]
[]
[null,null,null,"Svingbaner benævnes  \"H\" eller \"V\" efter hvilken side de svinger til og \"S\" for sving. Herefter nummereres fra vejmidte (set i kørselretning) og ud mod vejsiderne."]
[]
[null,null,null,"OBS: Spor, hvor mere end en retning er mulig, benævnes som \"lige ud\"-spor."]
[]
[]
[]
[]
[]
[]
[]
[]
[]
[]
[]
[]
[]
[]
[]
[null,null,"VHS3","VHS2","VHS1","H","MH","M","MV","V","VS1","VS2","VS3",null,"VS3","VS2","VS1","V","MV","M","MH","H","HS1","HS2","HS3"]
[null,null,"(VHS3)","(VHS2)","(VHS1)","(VH)","(VMH)","(VM)","(VMV)","(VV)","(VVS1)","(VVS2)","(VVS2)",null,"(HVS3)","(HVS2)","(HVS1)","(HV)","(HMV)","(HM)","(HMH)","(HH)","(HHS1)","(HHS2)","(HHS3)"]
[null,null,null,null,null,"Venstre side",null,null,null,null,null,null,null,null,null,null,null,"Højre side"]
[]
[]
["Brugerkode:",null,12,11,10,5,7,6,8,9,13,14,15,null,15,14,13,9,8,6,7,5,10,11,12]
[]
[null,null,null,"Bemærk:Ved mere end 5 \"lige ud\"-spor kan benævnelserne udvides, således at aller spor, ud over de yderste hedder noget med M (for midter-spor) "]
[null,null,null,null,null,null,"og så tilføje de øvrige  benævnelser."]
[]
[null,null,null,"Eksempel i højre side:"]
[]
[]
[]
[null,null,null,null,null,null,"HV","HMVV","HMVH","HM","HMHV","HMHH","HH"]
[]
[]
[]
[null,null," Eksempel på benævnelser af spor"]
[]
[null,null,null,"Vejsiden identificeres i kilometreringsretningen som højre (H) og venstre (V)"]
[null,null,null,"Vognbane er i kørselsretningen (Højre vognbane er altid \"det tunge/langsomme\" spor)"]
[]
[]
[null,null,null,null,null,"Ved 2 vognbaner:",null,null,null,null,null,null,null,null,null,"Ved 3 vognbaner:"]
[]
[]
[]
[]
[]
[]
[]
[]
[]
[]
[]
[]
[null,null,null,null,null,"H","V",null,"V","H",null,null,null,null,null,"H","M","V",null,"V","M","H"]
[null,null,null,null,null,"(VH)","(VV)",null,"(HV)","(HH)",null,null,null,null,null,"(VH)","(VM)","(VV)",null,"(HV)","(HM)","(HH)"]
[null,null,null,null,null,"Venstre side",null,null,"Højre side",null,null,null,null,null,null,"Venstre side",null,null,null,null,null,"Højre side"]
[]
[]
[]
["Brugerkode:",null,null,null,null,5,9,null,9,5,null,null,null,null,null,5,6,9,null,9,6,5]
[null,null,"Ved 4 vognbaner:",null,null,null,null,null,null,null,null,null,null,"Ved 5 vognbaner:"]
[]
[]
[]
[]
[]
[]
[]
[]
[]
[]
[]
[]
[null,null,"H","MH","MV","V",null,"V","MV","MH","H",null,null,"H","MH","M","MV","V",null,"V","MV","M","MH","H"]
[null,null,"(VH)","(VMH)","(VMV)","(VV)",null,"(HV)","(HMV)","(HMH)","(HH)",null,null,"(VH)","(VMH)","(VM)","(VMV)","(VV)",null,"(HV)","(HMV)","(HM)","(HMH)","(HH)"]
[null,null,"Venstre side",null,null,null,null,null,"Højre side",null,null,null,null,null,null,"Venstre side",null,null,null,null,null,"Højre side"]
[]
[]
[]
["Brugerkode:",null,5,7,8,9,null,9,8,7,5,null,null,5,7,6,8,9,null,9,8,6,7,5]

{"sheet":"Bitumen","index":5,"n_rows":18,"n_cols":6,"rows_kept":18,"cut":false,"hidden":false,"merged":[]}
[]
["Id","Kode","Brugerkode","Tekst","Brugertekst","Beskrivelse"]
[1,"AND","AND","ANDET","ANDET",";"]
[2,"B100","B100","B100","B100",";"]
[3,"B120","B120","B120","B120",";"]
[4,"B200","B200","B200","B200",";"]
[5,"B30","B30","B30","B30",";"]
[6,"B45","B45","B45","B45",";"]
[7,"B700","B700","B700","B700",";"]
[8,"B80","B80","B80","B80",";"]
[9,"E70","E70","E70","E70","Bitumenemulsion 70 R"]
[10,"100/","100/","100/150","100/150",";"]
[11,"160/","160/","160/220","160/220","Tidligere B180"]
[12,"250/","250/","250/330","250/330","Tidligere B300"]
[13,"30/","30/","30/55","30/55",";"]
[14,"330/","330/","330/430","330/430","Tidligere B500"]
[15,"40/","40/","40/60","40/60","Tidligere B60"]
[16,"70/","70/","70/100","70/100","Tidligere B85"]

{"sheet":"Stenmateriale","index":6,"n_rows":9,"n_cols":6,"rows_kept":9,"cut":false,"hidden":false,"merged":[]}
[]
["Id","Kode","Brugerkode","Tekst","Brugertekst","Beskrivelse"]
[6,"AND","AND","Andet","Andet","Andet"]
[2,"BAKK","BAKK","Bakkemateriale","Bakkemateriale","Bakkemateriale"]
[4,"ELEK","ELEK","Elektroslagger","Elektroslagger","Elektroslagger"]
[3,"KLIP","KLIP","Klippemateriale fx granit","Klippemateriale fx granit","Klippemateriale fx granit"]
[5,"SYNT","SYNT","Syntetisk materiale","Syntetisk materiale","Syntetisk materiale"]
[1,"SØ","SØ","Søsten","Søsten","Søsten"]
[7,0,0,0,0,0]

{"sheet":"Kornkurve","index":7,"n_rows":40,"n_cols":6,"rows_kept":40,"cut":false,"hidden":false,"merged":[]}
[]
["Id","Kode","Brugerkode","Tekst","Brugertekst","Beskrivelse"]
[2,99,99,0,0,";"]
[10,1,1,"0/6","0/6",";"]
[38,35,35,"0/6+8","0/6+8",";"]
[39,36,36,"0/6+11","0/6+11",";"]
[11,2,2,"0/8","0/8",";"]
[3,3,3,"0/10","0/10",";"]
[4,4,4,"0/12","0/12",";"]
[5,5,5,"0/16","0/16",";"]
[6,6,6,"0/20","0/20",";"]
[7,7,7,"0/22","0/22",";"]
[8,8,8,"0/25","0/25",";"]
[9,9,9,"0/40","0/40",";"]
[23,33,33,"2/5","2/5",";"]
[24,14,14,"4T","4T",";"]
[25,11,11,"5/8","5/8",";"]
[26,32,32,6,6,";"]
[27,23,23,"6K","6K",";"]
[28,15,15,"6T","6T",";"]
[29,19,19,"6Å","6Å",";"]
[30,30,30,8,8,";"]
[34,12,12,"8/11","8/11",";"]
[35,10,10,"8/12","8/12",";"]
[31,24,24,"8K","8K",";"]
[32,16,16,"8T","8T",";"]
[33,20,20,"8Å","8Å",";"]
[12,25,25,11,11,";"]
[16,13,13,"11/16","11/16",";"]
[13,26,26,"11K","11K",";"]
[14,27,27,"11T","11T",";"]
[15,28,28,"11Å","11Å",";"]
[17,17,17,"12T","12T",";"]
[18,21,21,"12Å","12Å",";"]
[19,29,29,16,16,";"]
[20,31,31,"16K","16K",";"]
[21,18,18,"16T","16T",";"]
[22,22,22,"16Å","16Å",";"]
[36,34,34,32,32,";"]
[1,98,98,"ANDET","ANDET",";"]

{"sheet":"EntrKoder","index":8,"n_rows":10,"n_cols":4,"rows_kept":10,"cut":false,"hidden":false,"merged":[]}
[21883929,"Arkil A/S - 1","Aastrupvej 19","6100 Haderslev"]
[21883932,"Colas A/S - 1"]
[21883942,"DOB - Dansk Overflade Behandling"]
[21884014,"Lemminkäinen A/S - 1","Parketvej 1","4600 Køge"]
[3588714,"M.J. Erikson A/S","Gl. Køge landevej","2660 Brøndby"]
[4792843,"Munck-Asfalt","Slipshavnsvej","5800 Nyborg"]
[3587546,"NCC roads A/S","Vestre Hedevej","4000 Roskilde"]
[21883969,"Pankas A/S - 3","Rundforbivej 34","2950 Vedbæk"]
[21884094,"Skanska A/S","Vejlevej 14","8700 Horsens"]
[24387574,"Strabag"]

{"sheet":"Referencelinjer","index":9,"n_rows":72,"n_cols":14,"rows_kept":72,"cut":false,"hidden":false,"merged":[]}
[null,null,null,null,null,null,null,null,null,null,null,null,null,"Det er endvidere muligt at indberette sideanlægstilslutninger som selvstændige vejdele ved brug af 2 cifre."]
[null,null,null,null,null,null,null,null,null,null,null,null,null,"Vejdelsfeltet er nu blevet på 8 karakterer, så forskellige former af nummerering af kommuneveje "]
[null,null,null,null,null,null,null,null,null,null,null,null,null,"også kan bevares ved oprettelse af disse i vejman.dk."]
[null,null,null,null,null,null,null,null,null,null,null,null,null,"11 (+ evt. bogstav): større sideanlæg højre side (typisk motorveje)"]
[null,null,null,null,null,null,null,null,null,null,null,null,null,"12 (+ evt. bogstav): større sideanlæg venstre side (typisk motorveje)"]
[null,null,null,null,null,null,null,null,null,null,null,null,null,"13 til 19: anvendes som 11 & 12, men til fri anvendelse af andre sideanlæg med selvstændig ind- & udkørsel."]
[]
[null,null,null,null,null,null,null,null,null,null,null,null,null,"Se figur 4 – 5."]
[]
[]
[]
[]
[]
[]
[]
[]
[]
[]
[]
[]
[]
[]
[]
[]
[]
[]
[]
[]
[]
[]
[]
[]
[]
[]
[]
[]
[]
[]
[null,null,null,null,null,null,null,null,null,null,null,null,null,"21 til 29: kan anvendes til stier i eget tracé, der ønskes inddateret som selvstændige vejdele."]
[]
[null,null,null,null,null,null,null,null,null,null,null,null,null,"Se figur 6 - 7."]
[]
[]
[]
[null,"Vejsiden er defineret ud fra vejens kilometeringsretning"]
[]
[]
[]
[null,"Vejdelene bruges ved delt tracé, særlige vejudformninger (niveauforskelle, uens længde af højre og venstre vejside),"]
[null,"parallelspor samt ramper."]
[]
[null,"Vejdirektoratet tildeler vejdelsnumre efter følgende princip:"]
[]
[null,"0: normalt vejforløb (samlet)"]
[null,"1: dele af normalt vejforløb (ved delt tracé: højre side)"]
[null,"2: dele af normalt vejforløb (ved delt tracé: venstre side)"]
[null,"3: rampe frakørsel højre side"]
[null,"4: rampe frakørsel venstre side"]
[null,"5: rampe tilkørsel højre side"]
[null,"6: rampe tilkørsel venstre side"]
[null,"7: parallelbaner m.v. højre side"]
[null,"8: parallelbaner m.v. venstre side"]
[]
[null,"Se figur 1 – 3"]
[]
[null,"Ved at definere vejdelene på denne måde, får alle elementer i højre side ulige delnumre og alle elementer i venstre "]
[null,"side lige delnumre (mange kommuner gør det som udgangspunkt modsat og følger i stedet husnummereringsprincippet)."]
[]
[]
[]
[null,null,null,null,null,null,null,null,null,null,null,null,null,"Der gøres opmærksom på, at figurerne er taget fra den gamle VIS-brugerhåndbog, hvorfor eksemplerne indeholder "]
[null,null,null,null,null,null,null,null,null,null,null,null,null,"’den gamle måde’ at opdele et administrativt vejnummer på (bestyrelse-vejnr-vejdel f.eks. 50-525-11)."]

{"sheet":"Eksempel på registrering","index":10,"n_rows":49,"n_cols":26,"rows_kept":49,"cut":false,"hidden":false,"merged":[[0,0,0,7],[0,9,0,24],[1,2,1,3],[1,4,1,5]]}
["Stedfæstelse",null,null,null,null,null,null,null,null,0]
[null,null,"Frakmt",null,"Tilkmt"]
["Admvejnr.","Admvejdel","km","m","km","m","Vejside","Tværprofilelement","Tvær. kode","Type","Forsøgsbel.","Støjreduc.","Mængde","Tykkelse","Modificeret","Bitumen","Lyst tilslag","Stenmateriale","Kornkurve","Udlægn slut dato","Bemærkning","Entreprenørnavn","Entreprenør ID","Affræst tykkelse","Afhjælpningsdato","Entr_id_Konvvej"]
[null,null,null,null,null,null,"Alle/H/V","Alle kørespor incl kantbane / Nødspor","Automatisk","Se faneblad","Ja/Nej","Ja/Nej","kg/m2","mm","Ja/Nej","Se faneblad","Ja/Nej","Se faneblad","Se faneblad",null,"Valgfri bemærkning","Se fanblad","Automatisk","mm"]
[429,0,5,932,6,32,"Alle ","Alle spor incl. Kantbane",{"$error":"#N/A"},"SMA",null,null,80,null,"Ja","40/",null,"KLIP","0/12","2012-09-17","E. 42910.20","Lemminkäinen A/S - 1",21884014,null,"2017-10-05",16741226]
[429,0,5,932,11,77,"Alle ","Alle spor incl. Kantbane",{"$error":"#N/A"},"ABB",null,null,150,null,"Ja","40/",null,"KLIP","0/16","2012-06-26","E. 42910.20","Lemminkäinen A/S - 1",21884014,null,"2017-10-05",16741226]
[429,0,5,932,11,77,"Alle ","Alle spor incl. Kantbane",{"$error":"#N/A"},"GAB2",null,null,225,null,"Nej","40/",null,"BAKK","0/22","2012-06-19","E. 42910.20","Lemminkäinen A/S - 1",21884014,null,"2017-10-05",16741226]
[429,0,5,932,11,77,"Alle ","Alle spor incl. Kantbane",{"$error":"#N/A"},"SG2",null,null,null,200,null,null,null,null,null,"2012-05-30","E. 42910.20","Strabag",24387574,null,"2017-10-05",16817289]
[429,0,5,932,11,77,"Alle ","Alle spor incl. Kantbane",{"$error":"#N/A"},"BL2",null,null,null,415,null,null,null,null,null,"2012-04-30","E. 42910.20","Strabag",24387574,null,"2017-10-05",16817289]
[429,0,6,32,10,602,"Alle ","Alle spor incl. Kantbane",{"$error":"#N/A"},"SMA",null,"Ja",55,null,"Ja","40/",null,"KLIP","0/6+8","2012-09-17",null,"Lemminkäinen A/S - 1",21884014,null,"2017-10-05",16741226]
[429,0,10,645,11,77,"Alle ","Alle spor incl. Kantbane",{"$error":"#N/A"},"SMA",null,"Ja",50,null,"Ja","40/",null,"KLIP","0/6+8","2012-09-25",null,"Lemminkäinen A/S - 1",21884014,null,"2017-10-05",16741218]
[429,1,10,602,10,670,"Alle ","Alle spor incl. Kantbane",{"$error":"#N/A"},"SMA",null,null,80,null,"Ja","40/","Ja","KLIP","0/12","2012-09-06","E. 42910.20",null,{"$error":"#N/A"},null,"2017-10-05"]
[429,1,10,602,10,670,"Alle ","Alle spor incl. Kantbane",{"$error":"#N/A"},"ABB",null,null,155,null,"Ja","40/",null,"KLIP","0/16","2011-07-04","E. 42910.20","Strabag",24387574,null,"2016-09-01",16817289]
[429,1,10,602,10,670,"Alle ","Alle spor incl. Kantbane",{"$error":"#N/A"},"GAB2",null,null,225,null,"Nej","40/",null,"BAKK","0/22","2011-07-01","E. 42910.20","Strabag",24387574,null,"2016-09-01",16817289]
[429,1,10,602,10,670,"Alle ","Alle spor incl. Kantbane",{"$error":"#N/A"},"SG2",null,null,null,200,null,null,null,null,null,"2011-06-01","E. 42910.20","Strabag",24387574,null,"2016-09-01",16817289]
[429,1,10,602,10,670,"Alle ","Alle spor incl. Kantbane",{"$error":"#N/A"},"BL2",null,null,null,417,null,null,null,null,null,"2011-05-01","E. 42910.20","Strabag",24387574,null,"2016-09-01",16817289]
[429,2,10,602,10,669,"Alle ","Alle spor incl. Kantbane",{"$error":"#N/A"},"SMA",null,null,80,null,"Ja","40/","Ja","KLIP","0/12","2012-09-06","E. 42910.20","Lemminkäinen A/S - 1",21884014,null,"2017-10-05",16741226]
[429,2,10,602,10,669,"Alle ","Alle spor incl. Kantbane",{"$error":"#N/A"},"ABB",null,null,155,null,"Ja","40/",null,"KLIP","0/16","2011-07-04","E. 42910.20","Strabag",24387574,null,"2016-09-01",16817289]
[429,2,10,602,10,669,"Alle ","Alle spor incl. Kantbane",{"$error":"#N/A"},"GAB2",null,null,225,null,"Nej","40/",null,"BAKK","0/22","2011-07-01","E. 42910.20","Strabag",24387574,null,"2016-09-01",16817289]
[429,2,10,602,10,669,"Alle ","Alle spor incl. Kantbane",{"$error":"#N/A"},"SG2",null,null,null,200,null,null,null,null,null,"2011-06-01","E. 42910.20","Strabag",24387574,null,"2016-09-01",16817289]
[429,2,10,602,10,669,"Alle ","Alle spor incl. Kantbane",{"$error":"#N/A"},"BL2",null,null,null,417,null,null,null,null,null,"2011-05-01","E. 42910.20","Strabag",24387574,null,"2016-09-01",16817289]
[429,8,5,550,6,57,"Alle ","Alle spor incl. Kantbane",{"$error":"#N/A"},"SMA",null,null,80,null,"Ja","40/",null,"KLIP","0/12","2012-09-25",null,"Lemminkäinen A/S - 1",21884014,null,"2017-10-05",16741218]
[429,8,5,550,6,57,"Alle ","Alle spor incl. Kantbane",{"$error":"#N/A"},"ABB",null,null,150,null,"Ja","40/",null,"KLIP","0/16","2012-09-15",null,"Lemminkäinen A/S - 1",21884014,null,"2017-10-05",16741218]
[429,8,5,550,6,57,"Alle ","Alle spor incl. Kantbane",{"$error":"#N/A"},"GAB2",null,null,225,null,"Nej","40/",null,"BAKK","0/22","2012-08-30",null,"Lemminkäinen A/S - 1",21884014,null,"2017-10-05",16741218]
[429,8,5,550,6,57,"Alle ","Alle spor incl. Kantbane",{"$error":"#N/A"},"SG2",null,null,null,200,null,null,null,null,null,"2012-07-30",null,"Strabag",24387574,null,"2017-10-05",16817289]
[429,8,5,550,6,57,"Alle ","Alle spor incl. Kantbane",{"$error":"#N/A"},"BL2",null,null,null,415,null,null,null,null,null,"2012-06-30",null,"Strabag",24387574,null,"2017-10-05",16817289]
[439,0,39,949,40,49,"Alle ","Alle spor incl. Kantbane",{"$error":"#N/A"},"SMA",null,null,80,null,"Ja","40/",null,"KLIP","0/12","2011-08-10",null,"Strabag",24387574,null,"2016-09-01",16817289]
[439,0,40,119,40,429,"Alle ","Alle spor incl. Kantbane",{"$error":"#N/A"},"SMA",null,null,80,null,"Ja","40/",null,"KLIP","0/12","2011-08-10",null,"Strabag",24387574,null,"2016-09-01",16817289]
[439,0,40,119,40,429,"Alle ","Alle spor incl. Kantbane",{"$error":"#N/A"},"ABB",null,null,135,null,"Ja","40/",null,"KLIP","0/16","2011-07-30",null,"Strabag",24387574,null,"2016-09-01",16817289]
[439,1,40,49,40,160,"Alle ","Alle spor incl. Kantbane",{"$error":"#N/A"},"SMA",null,null,80,null,"Ja","40/","Ja","KLIP","0/12","2011-08-10",null,"Strabag",24387574,null,"2016-09-01",16817289]
[439,1,40,49,40,160,"Alle ","Alle spor incl. Kantbane",{"$error":"#N/A"},"ABB",null,null,135,null,"Ja","40/",null,"KLIP","0/16","2011-07-30",null,"Strabag",24387574,null,"2016-09-01",16817289]
[439,1,40,49,40,160,"Alle ","Alle spor incl. Kantbane",{"$error":"#N/A"},"GAB2",null,null,225,null,"Nej","40/",null,"BAKK","0/22","2011-07-14",null,"Strabag",24387574,null,"2016-09-01",16817289]
[439,1,40,49,40,160,"Alle ","Alle spor incl. Kantbane",{"$error":"#N/A"},"SG2",null,null,null,200,null,null,null,null,null,"2011-06-30",null,"Strabag",24387574,null,"2016-09-01",16817289]
[439,1,40,49,40,160,"Alle ","Alle spor incl. Kantbane",{"$error":"#N/A"},"BL2",null,null,null,408,null,null,null,null,null,"2011-06-10",null,"Strabag",24387574,null,"2016-09-01",16817289]
[439,2,40,49,40,160,"Alle ","Alle spor incl. Kantbane",{"$error":"#N/A"},"SMA",null,null,80,null,"Ja","40/","Ja","KLIP","0/12","2011-08-10",null,"Strabag",24387574,null,"2016-09-01",16817289]
[439,2,40,49,40,160,"Alle ","Alle spor incl. Kantbane",{"$error":"#N/A"},"ABB",null,null,135,null,"Ja","40/",null,"KLIP","0/16","2011-07-30",null,"Strabag",24387574,null,"2016-09-01",16817289]
[439,2,40,49,40,160,"Alle ","Alle spor incl. Kantbane",{"$error":"#N/A"},"GAB2",null,null,225,null,"Nej","40/",null,"BAKK","0/22","2011-07-14",null,"Strabag",24387574,null,"2016-09-01",16817289]
[439,2,40,49,40,160,"Alle ","Alle spor incl. Kantbane",{"$error":"#N/A"},"SG2",null,null,null,200,null,null,null,null,null,"2011-06-30",null,"Strabag",24387574,null,"2016-09-01",16817289]
[439,2,40,49,40,160,"Alle ","Alle spor incl. Kantbane",{"$error":"#N/A"},"BL2",null,null,null,408,null,null,null,null,null,"2011-06-10",null,"Strabag",24387574,null,"2016-09-01",16817289]
[439,21,39,800,40,0,"Alle ","Sti",63,"PA",null,null,50,null,"Nej","250/",null,null,"0/6","2011-09-01",null,"Colas A/S - 1",21883932,null,"2016-09-01",16741144]
[439,21,39,800,40,0,"Alle ","Sti",63,"GAB0",null,null,90,null,null,"70/",null,null,null,"2011-08-25",null,"Colas A/S - 1",21883932,null,"2016-09-01",16741144]
[439,21,39,800,40,0,"Alle ","Sti",63,"SG2",null,null,null,200,null,null,null,null,null,"2011-08-10",null,"Strabag",24387574,null,"2016-09-01",16817289]
[439,21,39,800,40,0,"Alle ","Sti",63,"BL2",null,null,null,239,null,null,null,null,null,"2011-08-01",null,"Strabag",24387574,null,"2016-09-01",16817289]
[439,21,40,40,40,240,"Alle ","Sti",63,"PA",null,null,50,null,"Nej","250/",null,null,"0/6","2011-09-01",null,"Colas A/S - 1",21883932,null,"2016-09-01",16741144]
[439,21,40,40,40,240,"Alle ","Sti",63,"GAB0",null,null,90,null,null,"70/",null,null,null,"2011-08-25",null,"Colas A/S - 1",21883932,null,"2016-09-01",16741144]
[439,21,40,40,40,240,"Alle ","Sti",63,"SG2",null,null,null,200,null,null,null,null,null,"2011-08-10",null,"Strabag",24387574,null,"2016-09-01",16817289]
[439,21,40,40,40,240,"Alle ","Sti",63,"BL2",null,null,null,239,null,null,null,null,null,"2011-08-01",null,"Strabag",24387574,null,"2016-09-01",16817289]
[null,null,null,null,null,null,null,null,null,null,null,null,null," "]
[null,null,null,null,null,null,null,null,null,null,null,null,null," "]

{"sheet":"Ark1","index":11,"n_rows":26,"n_cols":10,"rows_kept":26,"cut":false,"hidden":false,"merged":[]}
[]
[]
[]
[]
[]
[null,"Alle spor incl. Kantbane"]
[null,"Nødrabat",null,null,"Alle ","Ja",null,1,null,1]
[null,"Nødspor",null,null,"Højre","Nej"]
[null,"Kørebane",null,null,"Venstre"]
[null,"Højre spor",null,null,"Midt"]
[null,"Midterspor"]
[null,"Midt højre spor"]
[null,"Midt venstre spor"]
[null,"Venstre spor"]
[null,"Højre svingspor 1"]
[null,"Højre svingspor 2"]
[null,"Højre svingspor 3"]
[null,"Venstre svingspor 1"]
[null,"Venstre svingspor 2"]
[null,"Venstre svingspor 3"]
[null,"Yderkantbane"]
[null,"Mellembane"]
[null,"Midtkantbane"]
[null,"Fortov"]
[null,"Cykelsti"]
[null,"Sti"]